{"text_format":"1","workbook":"xlsx","n_sheets":4,"sheets":["CF","AER only","Business & other details","6.2 STPIS Reliability"],"not_rendered":{"charts":0,"images":1,"macros":1,"external_links":18,"defined_names":614,"comments":1,"pivot_tables":0},"unopened":[],"bounds":{"document_bytes":16777216,"sheet_cells":100000,"rows_first":2000,"rows_last":500,"rows_between":2000,"halvings":0,"cell_chars":16384,"cell_head_chars":4096},"cells_cut":0,"cells_raw":0,"read":"whole","date_system":"1900"}

{"sheet":"CF","index":0,"n_rows":125,"n_cols":22,"rows_kept":125,"cut":false,"hidden":true,"merged":[[1,1,1,21]]}
[]
[null,"CONDITIONAL FORMATTING MAP"]
[null,null,null,null,null,"=INDEX(dms_CF_3.6.1, MATCH(dms_TradingName,dms_CF_TradingName))=\"Y\"","=INDEX(dms_CF_3.6.5, MATCH(dms_TradingName,dms_CF_TradingName))=\"Y\"",{"$f":"INDEX(dms_CF_3.6.6, MATCH(dms_TradingName,dms_CF_TradingName))=\"Y\"","v":false},"=INDEX(dms_CF_3.6.7.1, MATCH(dms_TradingName,dms_CF_TradingName))=\"Y\"","=INDEX(dms_CF_3.6.7.2, MATCH(dms_TradingName,dms_CF_TradingName))=\"Y\"","=INDEX(dms_CF_3.6.7.3, MATCH(dms_TradingName,dms_CF_TradingName))=\"Y\"","=INDEX(dms_CF_3.6.7.4, MATCH(dms_TradingName,dms_CF_TradingName))=\"Y\"","=INDEX(dms_CF_3.6.8, MATCH(dms_TradingName,dms_CF_TradingName))=\"Y\"","=INDEX(dms_CF_4.1, MATCH(dms_TradingName,dms_CF_TradingName))=\"Y\"","=INDEX(dms_CF_6.6.1, MATCH(dms_TradingName,dms_CF_TradingName))=\"Y\"","=INDEX(dms_CF_6.8, MATCH(dms_TradingName,dms_CF_TradingName))=\"Y\"","=INDEX(dms_CF_7.12, MATCH(dms_TradingName,dms_CF_TradingName))=\"Y\"","=INDEX(dms_CF_8.1_A, MATCH(dms_TradingName,dms_CF_TradingName))=\"Y\"","=INDEX(dms_CF_8.1_B, MATCH(dms_TradingName,dms_CF_TradingName))=\"Y\"","=INDEX(dms_CF_8.1_Neg, MATCH(dms_TradingName,dms_CF_TradingName))=\"Y\"","=INDEX(dms_CF_4.4.1_Neg, MATCH(dms_TradingName,dms_CF_TradingName))=\"Y\""]
[null,"dms_CF_TradingName","JurisdictionList","Sector","Segment","dms_CF_3.6.1","dms_CF_3.6.5","dms_CF_3.6.6","dms_CF_3.6.7.1","dms_CF_3.6.7.2","dms_CF_3.6.7.3","dms_CF_3.6.7.4","dms_CF_3.6.8","dms_CF_4.1","dms_CF_6.6.1","dms_CF_6.8","dms_CF_7.12","dms_CF_8.1_A","dms_CF_8.1_B","dms_CF_8.1_Neg","dms_CF_4.4.1","dms_CF_MAIFI_flag"]
[null,"ActewAGL Distribution","ACT","Electricity","Distribution",null,"Y",null,"Y","Y","N","Y","N","Y","N","Y","Y","N","Y","Y","N","N"]
[null,"Ausgrid","NSW","Electricity","Distribution",null,"Y",null,"N","N","N","Y","N","Y","N","Y","Y","N","Y","Y","N","N"]
[null,"AusNet (D)","Vic","Electricity","Distribution",null,"N",null,"N","N","N","N","N","Y","N","Y","N","N","N","Y","N","N"]
[null,"AusNet (T)","Vic","Electricity","Transmission",null,"N",null,"N","N","N","N","N","Y","N","Y","N","N","N","Y","N","N"]
[null,"CitiPower","Vic","Electricity","Distribution",null,"N",null,"N","N","N","N","N","Y","N","Y","N","N","N","Y","N","N"]
[null,"Directlink","Qld","Electricity","Transmission",null,"N",null,"N","N","N","N","N","Y","N","Y","N","N","Y","Y","N","N"]
[null,"ElectraNet","SA","Electricity","Transmission",null,"N",null,"N","N","N","N","N","Y","N","Y","N","N","Y","Y","N","N"]
[null,"Endeavour Energy","NSW","Electricity","Distribution",null,"Y",null,"N","N","N","Y","N","Y","N","Y","Y","N","Y","Y","Y","N"]
[null,"Energex","Qld","Electricity","Distribution",null,"Y",null,"N","N","N","N","N","Y","N","Y","Y","N","Y","Y","Y","N"]
[null,"Ergon Energy","Qld","Electricity","Distribution",null,"Y",null,"N","N","N","N","N","Y","N","Y","Y","N","Y","Y","N","N"]
[null,"Essential Energy","NSW","Electricity","Distribution",null,"Y",null,"N","N","N","Y","N","Y","N","Y","Y","N","Y","Y","N","N"]
[null,"Jemena Electricity","Vic","Electricity","Distribution",null,"N",null,"N","N","N","N","N","Y","N","Y","N","N","N","Y","N","N"]
[null,"Murraylink","SA","Electricity","Transmission",null,"N",null,"N","N","N","N","N","Y","N","Y","N","N","Y","Y","N","N"]
[null,"Power and Water","NT","Electricity","Distribution",null,"N",null,"N","Y","N","N","Y","Y","Y","Y","Y","Y","Y","Y","N","N"]
[null,"Powercor Australia","Vic","Electricity","Distribution",null,"N",null,"N","N","N","N","N","Y","N","Y","N","N","N","Y","N","N"]
[null,"Powerlink","Qld","Electricity","Transmission",null,"N",null,"N","N","N","N","N","Y","N","Y","N","N","Y","Y","N","N"]
[null,"SA Power Networks","SA","Electricity","Distribution",null,"Y",null,"N","N","N","N","N","Y","N","Y","Y","Y","Y","N","N","N"]
[null,"TasNetworks (D)","Tas","Electricity","Distribution",null,"Y",null,"N","N","N","N","N","Y","N","Y","Y","N","Y","Y","N","N"]
[null,"TasNetworks (T)","Tas","Electricity","Transmission",null,"N",null,"N","N","N","N","N","Y","N","Y","N","N","Y","Y","N","N"]
[null,"TransGrid","NSW","Electricity","Transmission",null,"N",null,"N","N","N","N","N","Y","N","Y","N","N","Y","Y","N","N"]
[null,"United Energy","Vic","Electricity","Distribution",null,"N",null,"N","N","N","N","N","Y","N","Y","N","N","N","Y","N","N"]
[]
[]
[]
[]
[]
[null,"Worksheet 6.2 STPIS reliability"]
[null,"Formula",null,null,null,"Applied to:"]
[]
[null,"=INDEX(dms_CBD_flag,MATCH(dms_TradingName,dms_TradingName_List))=\"NO\"",null,null,null,"$D$11,$D$17,$D$23,$D$33,$D$39,$D$45,$D$55,$D$61,$D$67,$D$77,$D$83,$D$89"]
[null,"=INDEX(dms_Urban_flag,MATCH(dms_TradingName,dms_TradingName_List))=\"NO\"",null,null,null,"$D$12,$D$18,$D$24,$D$56,$D$62,$D$78,$D$68,$D$84"]
[null,"=INDEX(dms_ShortRural_flag,MATCH(dms_TradingName,dms_TradingName_List))=\"NO\"",null,null,null,"$D$13,$D$19,$D$25,$D$57,$D$63,$D$69,$D$79,$D$85"]
[null,"=INDEX(dms_LongRural_flag,MATCH(dms_TradingName,dms_TradingName_List))=\"NO\"",null,null,null,"$D$14,$D$20,$D$26,$D$58,$D$64,$D$65,$D$70,$D$71,$D$80,$D$86"]
[null,"=INDEX(dms_FeederType_5_flag,MATCH(dms_TradingName,dms_TradingName_List))=\"NO\"",null,null,null,"$D$87,$D$81,$D$71,$D$65,$D$59,$D$49,$D$43,$D$37,$D$21,$D$15"]
[null,"=dms_MAIFI_Flag=\"No\"",null,null,null,"$D$55:$D$72"]
[]
[]
[]
[]
[]
[]
[]
[]
[]
[]
[]
[]
[]
[]
[]
[]
[]
[]
[]
[]
[]
[]
[]
[]
[]
[]
[]
[]
[]
[]
[]
[]
[]
[]
[]
[]
[]
[]
[]
[]
[]
[]
[]
[]
[]
[]
[]
[]
[]
[]
[]
[]
[]
[]
[]
[]
[]
[]
[]
[]
[]
[]
[]
[]
[]
[]
[]
[]
[]
[]
[]
[]
[]
[]
[]
[]
[]
[]
[]
[]
[]
[]
[]
[]
[null,null,{"$f":"IFERROR(IF(dms_060801_StartCell<>\"\",IF(dms_Model=\"ARR\",(LOOKUP(2,1/(dms_060801_01_Values<>\"\"),(ROW(dms_060801_01_Values)))),\"not an ARR\"),0),\"0\")","v":"0"}]
[null,null,{"$f":"IFERROR(IF(dms_Model=\"ARR\",(MAX(0,dms_0608_LastRow-dms_0608_OffsetRows)),\"not an ARR\"),\"0\")","v":"0"}]

{"sheet":"AER only","index":1,"n_rows":201,"n_cols":40,"rows_kept":201,"cut":false,"hidden":true,"merged":[[0,1,0,11],[4,27,4,38],[6,27,6,30],[6,33,6,37],[29,25,29,29],[29,30,29,33],[30,1,30,5],[30,14,30,21],[30,25,30,29],[30,30,30,33],[49,14,49,15],[49,18,49,20],[49,25,49,28],[53,18,53,20],[70,1,72,1],[73,1,77,1],[81,1,82,1],[125,1,125,8]]}
[null,"Data in these columns used for data validation and database purposes."]
[null,"Date last modified:","2017-01-16","added (Albury and Victora) for AGN"]
[null,null,"2016-10-17","updated TransGrid's correct legal name, corrected TasNetworks (T) to June financial year"]
[null,null,"2017-02-01","inserted Power and Water, added NRs (dms_FeederCat_1 and dms_FeederCat_2)"]
[null,null,"2017-03-03","inserted AEMO as a business",null,null,null,null,null,null,null,null,null,null,null,null,null,null,null,null,null,null,null,null,null,null,null,"FOR ELECTRICITY BUSINESSES ONLY"]
[null,null,"2018-03-28","major changes to accommodate STPIS"]
[null,null,"Template Version",5,null,null,null,null,null,null,null,null,null,null,null,null,null,null,null,null,null,null,null,null,null,null,null,"Feeder Types",null,null,null,"TasNetworks (D)","MAIFI flag","Feeder Names",null,null,null,null,null,"=INDEX(dms_Public_Lighting_List, MATCH(dms_TradingName,dms_TradingName_List))=\"NO\""]
[]
[null,null,null,null,null,null,null,null,null,null,null,null,null,null,null,null,null,null,null,null,null,null,null,null,null,null,null,"CBD","Urban","Short rural","long rural","EXTRA"]
[null,"dms_TradingName_List","dms_TradingNameFull_List","dms_ABN_List","dms_JurisdictionList","dms_Sector_List","dms_Segment_List","dms_FormControl_List","dms_RPT_List","dms_RPTMonth_List","dms_CRCPlength_List","dms_FRCPlength_List","dms_663_List","dms_DeterminationRef_List","dms_Addr1_List","dms_Addr2_List","dms_Suburb_List","dms_State_List","dms_PostCode_List","dms_PAddr1_List","dms_PAddr2_List","dms_PSuburb_List","dms_PState_List","dms_PPostCode_List","dms_ContactName1_List","dms_ContactPh1_List","dms_ContactEmail_List","dms_CBD_flag","dms_Urban_flag","dms_ShortRural_flag","dms_LongRural_flag","dms_FeederType_5_flag","dms_MAIFI_flag_List","dms_FeederName_1","dms_FeederName_2","dms_FeederName_3","dms_FeederName_4","dms_FeederName_5","dms_Public_Lighting_List","Column1"]
[null,"Ausgrid","Ausgrid",78508211731,"NSW","Electricity","Distribution","Revenue cap","Financial","June",5,5,5,"2014-19 Distribution Determination","24-28 Campbell Street",null,"SYDNEY","NSW",2000,"GPO Box 4009",null,"SYDNEY","NSW",2001,"John Thomson","02 9269 2312","john.thomson@ausgrid.com.au","YES","YES","YES","YES","NO","NO","CBD","Urban","Short rural","Long rural",null,"YES","Ausgrid"]
[null,"Ausgrid (Tx Assets)","Ausgrid (Tx Assets)",67505337385,"NSW","Electricity","Distribution","Revenue cap","Financial","June",5,5,5,"distribution determination","24-28 Campbell Street",null,"SYDNEY","NSW",2000,"GPO Box 4009",null,"SYDNEY","NSW",2001,"John Thomson","02 9269 2312","john.thomson@ausgrid.com.au","YES","YES","YES","YES","NO","NO","CBD","Urban","Short rural","Long rural",null,"YES","Ausgrid (Tx Assets)"]
[null,"AusNet (D)","AusNet Electricity Services Pty Ltd",91064651118,"Vic","Electricity","Distribution","Revenue cap","Financial","June",5,5,2,"2016-20 Distribution Determination","Level 32","2 Southbank Boulevard","SOUTHBANK","Vic",3006,"Locked Bag 14051",null,"MELBOURNE CITY MAIL CENTRE","Vic",8001,"Thomas Hall",null,"thomas. hall@ausnetservices.com.au","NO","YES","YES","YES","NO","YES","CBD","Urban","Short rural","Long rural",null,"YES","AusNet (D)"]
[null,"Australian Distribution Co.","Australian Distribution Co.",11222333444,"-","Electricity","Distribution","Revenue cap","Financial","June",5,5,2,"distribution determination","123 Straight Street",null,"SYDNEY","NSW",2000,"PO Box 123",null,"SYDNEY","NSW",2000,"Bob Smith","02 1234 5678","bob@auselec.net.au","YES","YES","YES","YES","NO","NO","CBD","Urban","Short rural","Long rural",null,"YES","Australian Distribution Co."]
[null,"CitiPower","CitiPower",76064651056,"Vic","Electricity","Distribution","Revenue cap","Financial","June",5,5,2,"2016-20 Distribution Determination","40 Market Street",null,"MELBOURNE","Vic",3000,"Locked Bag 14090",null,"MELBOURNE","Vic",8001,"Hannah Williams","03 9683 4088","hwilliams@powercor.com.au","YES","YES","NO","NO","NO","YES","CBD","Urban","Short rural","Long rural",null,"YES","CitiPower"]
[null,"Endeavour Energy","Endeavour Energy",11247365823,"NSW","Electricity","Distribution","Revenue cap","Financial","June",5,5,5,"2014-19 Distribution Determination","51 Huntingwood Drive",null,"HUNTINGWOOD","NSW",2148,"PO Box 811",null,"SEVEN HILLS","NSW",1730,"Jon Hocking","02 9853 4386 / 0407 348 156","Jon.Hocking@Endeavourenergy.com.au","YES","YES","YES","YES","NO","NO","CBD","Urban","Short rural","Long rural",null,"YES","Endeavour Energy"]
[null,"Energex","Energex",40078849055,"Qld","Electricity","Distribution","Revenue cap","Financial","June",5,5,5,"2015-20 Distribution Determination","26 Reddacliff Street",null,"NEWSTEAD","Qld",4006,"26 Reddacliff Street",null,"NEWSTEAD","QLD",4006,"Jenny Doyle, Group Manager Regulatory Affairs","(07) 3851 6416","jenny.doyle@ergon.com.au","YES","YES","YES","NO","NO","NO","CBD","Urban","Short rural","Long rural",null,"YES","Energex"]
[null,"Ergon Energy","Ergon Energy",50087646062,"Qld","Electricity","Distribution","Revenue cap","Financial","June",5,5,5,"2015-20 Distribution Determination","22 Walker Street",null,"TOWNSVILLE","Qld",4810,"Po Box 264",null,"FORTITUDE VALLEY","QLD",4006,"Jenny Doyle, Group Manager Regulatory Affairs","(07) 3851 6416","jenny.doyle@ergon.com.au","NO","YES","YES","YES","NO","NO","CBD","Urban","Short rural","Long rural",null,"YES","Ergon Energy"]
[null,"Essential Energy","Essential Energy",37428185226,"NSW","Electricity","Distribution","Revenue cap","Financial","June",5,5,5,"2014-19 Distribution Determination","8 Buller Street",null,"PORT MACQUARIE","NSW",2444,"PO Box 5730",null,"PORT MACQUARIE","NSW",2444,"Catherine Waddell","02 6338 3553","catherine.waddell@essentialenergy.com.au","NO","YES","YES","YES","NO","NO","CBD","Urban","Short rural","Long rural",null,"YES","Essential Energy"]
[null,"Evoenergy Distribution","ActewAGL Distribution",76670568688,"ACT","Electricity","Distribution","Revenue cap","Financial","June",5,5,5,"2014-19 Distribution Determination","40 Bunda Street",null,"CANBERRA","ACT",2600,"GPO BOX 366",null,"CANBERRA","ACT",2601,"Robert Walker","02 6248 3847","robert.walker@actewagle.com.au","NO","YES","YES","NO","NO","NO","CBD","Urban","Short rural","Long rural",null,"NO","Evoenergy Distribution"]
[null,"Evoenergy Distribution (Tx Assets)","ActewAGL Distribution (Tx Assets)",76670568688,"ACT","Electricity","Distribution","Revenue cap","Financial","June",5,5,5,"distribution determination","40 Bunda Street",null,"CANBERRA","ACT",2600,"GPO BOX 366",null,"CANBERRA","ACT",2601,"Robert Walker","02 6248 3847","robert.walker@actewagle.com.au","NO","YES","YES","NO","NO","NO","CBD","Urban","Short rural","Long rural",null,"NO","Evoenergy Distribution (Tx Assets)"]
[null,"Jemena Electricity","Jemena Electricity",82064651083,"Vic","Electricity","Distribution","Revenue cap","Financial","June",5,5,2,"2016-20 Distribution Determination","Level 16","567 Collins Street","MELBOURNE","Vic",3000,"PO Box 16182",null,"MELBOURNE","Vic",8001,"Matthew Serpell","03 9173 8231","matthew.serpell@jemena.com.au","NO","YES","YES","NO","NO","YES","CBD","Urban","Short rural","Long rural",null,"YES","Jemena Electricity"]
[null,"Power and Water","Power and Water Corporation",15947352360,"NT","Electricity","Distribution","Revenue cap","Financial","June",5,5,"x","distribution determination","GPO Box 1921",null,"DARWIN","NT",801,"GPO Box 1921",null,"DARWIN","NT",801,"Lucy Moon","08 8924 5822","Lucy.Moon@powerwater.com.au","YES","YES","YES","YES","NO","NO","CBD","Urban","Short rural","Long rural",null,"NO","Power and Water"]
[null,"Powercor Australia","Powercor Australia",89064651109,"Vic","Electricity","Distribution","Revenue cap","Financial","June",5,5,2,"2016-20 Distribution Determination","40 Market Street",null,"MELBOURNE","Vic",3000,"Locked bag 14090",null,"MELBOURNE","Vic",8001,"Hannah Williams","03 9683 4088","hwilliams@powercor.com.au","NO","YES","YES","YES","NO","YES","CBD","Urban","Short rural","Long rural",null,"YES","Powercor Australia"]
[null,"SA Power Networks","SA Power Networks",13332330749,"SA","Electricity","Distribution","Revenue cap","Financial","June",5,5,5,"2015-20 Distribution Determination","1 Anzac Highway",null,"KESWICK","SA",5035,"GPO Box 77",null,"ADELAIDE","SA",5000,"Richard Sibly","08 8404 5613","richard.sibly@sapowernetworks.com.au","YES","YES","YES","YES","NO","NO","CBD","Urban","Short rural","Long rural",null,"YES","SA Power Networks"]
[null,"TasNetworks (D)","TasNetworks (D)",24167357299,"Tas","Electricity","Distribution","Revenue cap","Financial","June",5,5,5,"distribution determination","1-7 Maria Street",null,"LENAH VALLEY","Tas",7008,"PO Box 606",null,"MOONAH","Tas",7009,"John Sayers","03 6271 6469","john.sayers@tasnetworks.com.au","YES","YES","YES","YES","YES","NO","Critical Infrastructure","High density commercial","Urban","High density rural","Low density rural","YES","TasNetworks (D)"]
[null,"United Energy","United Energy",70064651029,"Vic","Electricity","Distribution","Revenue cap","Financial","June",5,5,2,"2016-20 Distribution Determination","43-45 Centreway",null,"MOUNT WAVERLEY","Vic",3149,"PO Box 449",null,"MOUNT WAVERLEY","Vic",3170,"Mathew Abraham","03 8846 9758","mathew.abraham@ue.com.au","NO","YES","YES","NO","NO","YES","CBD","Urban","Short rural","Long rural",null,"YES","United Energy"]
[]
[]
[null,null,null,null,null,null,null,null,null,null,null,null,null,null,null,null,null,null,null,null,null,null,null,null,null,"For EB & Reset RINs only",null,null,null,null,"For AARs only"]
[null,"The Reg Year Ending (dms_RYE) must be set to the last year of the regulatory period. For forecast data is is usually (FRCP_y5) for actual it is a single year (CRY). For historical actual data the RYE will need to be set manually in the business details sheet by setting the dms_Multiyear_flag to 1 and putting the correct value in 'dms_Specified_FinalYear. See cells C67:C68",null,null,null,null,null,null,null,null,null,null,null,"Drop down selector box for CA & Reset RINs.","For CA & Reset RINs only",null,null,null,null,null,null,null,null,null,null,"for DNSP only",null,null,null,null,"For DNSPs only"]
[null,"dms_Model_List ","dms_Worksheet_List",null,"dms_RYE_Formula_Result",null,null,null,null,null,null,null,null,"dms_0203_ProjectType","dms_020303_01_UOM","dms_020501_01_UOM","dms_020501_02_UOM","dms_020501_03_UOM","dms_020501_04_UOM","dms_020603_01_UOM","dms_020701_01_UOM","dms_020701_02_UOM","dms_020701_01_Rows","dms_040102_01_UOM","dms_040102_04_UOM","dms_030601_01_UOM","dms_030601_02_UOM","dms_030701_01_UOM","dms_030702_01_UOM","dms_030703_01_UOM","dms_030605_UOM","dms_03060703_UOM"]
[null,"ARR","ANNUAL REPORTING",null,{"$f":"LEFT(dms_SingleYear_FinalYear_Result,2)&RIGHT(dms_SingleYear_FinalYear_Result,2)","v":{"$error":"#NAME?"}},"=LEFT(dms_SingleYear_FinalYear_Result,2)&RIGHT(dms_SingleYear_FinalYear_Result,2)",null,"Formula errors are OK",null,null,null,null,null,"New line on new route - single circuit","Circuit line length in km","0's","0's","0's","0's","0's","km","km","Route line length within zone","0's","days","minutes/customer","minutes/customer","Customer / km","%","km","number","number"]
[null,"CA","CATEGORY ANALYSIS",null,{"$f":"LEFT(dms_SingleYear_FinalYear_Result,2)&RIGHT(dms_SingleYear_FinalYear_Result,2)","v":{"$error":"#NAME?"}},"=LEFT(dms_SingleYear_FinalYear_Result,2)&RIGHT(dms_SingleYear_FinalYear_Result,2)",null,"Formula errors are OK",null,null,null,null,null,"New line on new route - dual circuit","Circuit line length in km","0's","0's","0's","0's","0's","0's","0's","Number of maintenance spans","0's","0's","minutes/customer","minutes/customer","MWh/customer","Number of spans",null,"number","number"]
[null,"CESS","CAPITLAL EXPENDITURE SHARING SCHEMING",null,"2016","=LEFT(dms_SingleYear_FinalYear_Result,2)&RIGHT(dms_SingleYear_FinalYear_Result,2)",null,null,null,null,null,null,null,"New line on new route - other","Circuit line length in km","MVA added","MVA added","MVA added","MVA added","0's","km","km","Total length of maintenance spans","0's","$0s","interruptions/customer","interruptions/customer","kVA / customer","Number of spans",null,"number","number"]
[null,"CPI","CPI",null,null,null,null,null,null,null,null,null,null,"Line rebuild over existing route - single circuit","Circuit line length in km","0's","0's","0's","0's","0's","km","km","Length of vegetation corridors","$0s","0's","interruptions/customer","interruptions/customer",null,"Number of spans",null,"number","number"]
[null,"EB","ECONOMIC BENCHMARKING",null,{"$f":"LEFT(dms_SingleYear_FinalYear_Result,2)&RIGHT(dms_SingleYear_FinalYear_Result,2)","v":{"$error":"#NAME?"}},"=LEFT(dms_SingleYear_FinalYear_Result,2)&RIGHT(dms_SingleYear_FinalYear_Result,2)",null,"Formula errors are OK",null,null,null,null,null,"Line rebuild over existing route - dual circuit","Number","total spend $0s","total spend $0s","total spend $0s","total spend $0s","(per cent)","0's","0's","Average number of trees per maintenance span",null,null,null,null,null,"Number of spans",null,"number","(per cent)"]
[null,"Pricing","PRICING PROPOSAL"]
[null,"PTRM","POST TAX REVENUE MODEL",null,{"$f":"LEFT(dms_MultiYear_FinalYear_Result,2)&RIGHT(dms_MultiYear_FinalYear_Result,2)","v":{"$error":"#NAME?"}},"=LEFT(dms_MultiYear_FinalYear_Result,2)&RIGHT(dms_MultiYear_FinalYear_Result,2)",null,null,null,null,null,null,null,"Reconductor - Single circuit","Number","net circuit km added","net circuit km added","net circuit km added","net circuit km added",null,"years","years","Average frequency of cutting cycle",null,null,null,null,null,"Years",null,"number"]
[null,"Reset","REGULATORY REPORTING STATEMENT",null,{"$f":"LEFT(dms_MultiYear_FinalYear_Result,2)&RIGHT(dms_MultiYear_FinalYear_Result,2)","v":{"$error":"#NAME?"}},"=LEFT(dms_MultiYear_FinalYear_Result,2)&RIGHT(dms_MultiYear_FinalYear_Result,2)",null,"Formula errors are OK",null,null,null,null,null,"Reconductor - Dual circuit","Number","total spend $0s","total spend $0s","total spend $0s","total spend $0s",null,null,null,null,null,null,null,null,null,"Years",null,"number"]
[null,"RFM","ROLL FORWARD MODEL",null,{"$f":"LEFT(dms_CRCP_FinalYear_Result,2)&RIGHT(dms_CRCP_FinalYear_Result,2)","v":{"$error":"#NAME?"}},"=LEFT(dms_CRCP_FinalYear_Result,2)&RIGHT(dms_CRCP_FinalYear_Result,2)",null,null,null,null,null,null,null,"Other",null,"net circuit km added","net circuit km added","net circuit km added","net circuit km added",null,null,null,null,null,null,null,null,null,"Trees",null,"number"]
[null,"WACC","WEIGHTED AVERAGE COST OF CAPITAL",null,{"$f":"LEFT(dms_MultiYear_FinalYear_Result,2)&RIGHT(dms_MultiYear_FinalYear_Result,2)","v":{"$error":"#NAME?"}},"=LEFT(dms_MultiYear_FinalYear_Result,2)&RIGHT(dms_MultiYear_FinalYear_Result,2)",null,null,null,null,null,null,null,null,null,"total spend $0s","total spend $0s","total spend $0s","total spend $0s",null,null,null,null,null,null,null,null,null,"Trees",null,"number"]
[null,null,null,null,null,null,null,null,null,null,null,null,null,null,null,"0's",null,"$0s",null,null,null,null,null,null,null,null,null,null,"Defects",null,"number"]
[null,"dms_DataQuality_List","dms_Confid_status_List",null,null,null,null,null,null,null,null,null,null,null,null,"0's",null,null,null,null,null,null,null,null,null,null,null,null,"Defects",null,"number"]
[null,"Actual","Public",null,null,null,null,null,null,null,null,null,null,null,null,"0's",null,null,null,null,null,null,null,null,null,null,null,null,"Spans",null,"number"]
[null,"Estimate","Confidential",null,null,null,null,null,null,null,null,null,null,null,null,"$0s",null,null,null,null,null,null,null,null,null,null,null,null,"km",null,"(per cent)"]
[null,"Consolidated",null,null,null,null,null,null,null,null,null,null,null,null,null,null,null,null,null,null,null,null,null,null,null,null,null,null,"Spans",null,"(per cent)"]
[]
[]
[null,null,null,null,null,null,null,null,null,null,"STYLES IN USE",null,null,null,"For PTRM files - this field set the text for the named range \"DMS_Xfactor\" which in all cases is simply the text \"x factors\" - this saves putting in each old gas PTRM file ",null,null,null,"for RFMs",null,null,null,null,null,null,"for TNSP only",null,null,null,"for DNSP & TNSP"]
[null,"For all files either AER or business needs to be able to specify the type of submission","For PTRM & RFM templates we must provide a choice in case they change their form of control - otherwise it is drawn from the business specific lookup table above.",null,null,null,null,null,null,"dms_1",null,null,null,null,"DMS_Xfactor",null,null,null,"dms_Beg","dms_Mid","dms_End",null,null,null,null,"dms_030601_01_UOM",null,"dms_030701_01_UOM","dms_030702_01_UOM","dms_EB_RAB_PIT"]
[null,"dms_SourceList","dms_FormControl_Choices",null,null,null,null,null,null,"dms_2",null,null,null,null,"x factors",null,null,null,"Beginning of year","Mid year","End of Year",null,null,null,null,"%",null,"Number of spans","km","Beginning of year"]
[null,"After appeal","Revenue cap",null,null,null,null,null,null,"dms_3",null,null,null,null,null,null,null,null,null,null,null,null,null,null,null,"number",null,"Years","%","End of year"]
[null,"Draft decision","Revenue yield",null,null,null,null,null,null,"dms_4",null,null,null,null,null,null,null,null,"for PTRMs",null,null,null,null,null,null,"number",null,"Trees","km","End of year"]
[null,"Final decision","Weighted average price cap",null,null,null,null,null,null,"dms_5",null,null,null,null,null,null,null,null,"dms_PTRM_RAB_PIT","dms_PTRM_TAB_PIT",null,null,null,null,null,"%",null,"Defects","number","End of year"]
[null,"PTRM update 1",null,null,null,null,null,null,null,"dms_NUM",null,null,null,null,null,null,null,null,"Beginning of year","Beginning of year",null,null,null,null,null,"number",null,"Number of spans",null,"End of year"]
[null,"PTRM update 2",null,null,null,null,null,null,null,"dms_NUM%",null,null,null,null,null,null,null,null,"End of year","End of year",null,null,null,null,null,"number",null,"km",null,"End of year"]
[null,"PTRM update 3",null,null,null,null,null,null,null,"dms_Row_Locked",null,null,null,null,null,null,null,null,"End of year","End of year",null,null,null,null,null,"%",null,"km"]
[null,"PTRM update 4",null,null,null,null,null,null,null,"dms_Row1",null,null,null,null,null,null,null,null,"End of year","End of year",null,null,null,null,null,"number",null,"Number of spans"]
[null,"PTRM update 5",null,null,null,null,null,null,null,"dms_Row2",null,null,null,null,null,null,null,null,"End of year",null,null,null,null,null,null,"number"]
[null,"PTRM update 6",null,null,null,null,null,null,null,"dms_T1",null,null,null,null,null,null,null,null,null,null,null,null,null,null,null,"%"]
[null,"PTRM update 7",null,null,null,null,null,null,null,"dms_T2",null,null,null,null,null,null,null,null,null,null,null,null,null,null,null,"number"]
[null,"Regulatory proposal",null,null,null,null,null,null,null,"dms_BH",null,null,null,null,null,null,null,null,null,null,null,null,null,null,null,"%"]
[null,"Reporting",null,null,null,null,null,null,null,"dms_BY1",null,null,null,null,null,null,null,null,null,null,null,null,null,null,null,"number"]
[null,"Revised regulatory proposal",null,null,null,null,null,null,null,"dms_BY2",null,null,null,null,null,null,null,null,null,null,null,null,null,null,null,"%"]
[null,null,null,null,null,null,null,null,null,"dms_GH",null,null,null,null,null,null,null,null,null,null,null,null,null,null,null,"number"]
[null,null,null,null,null,null,null,null,null,"dms_GY1"]
[null,null,null,null,null,null,null,null,null,"dms_GY2"]
[]
[null,"Reason for interruption","dms_Reason_Interruption_Detailed","dms_Reason_Interruption","dms_STPIS_Exclusion_List","dms_020301_ProjectType_List","dms_020302_ProjectType_List"]
[null,"Animal","Animal impact","Animal","Weather","New substation establishment","New line on new route - single circuit"]
[null,null,"Animal nesting/burrowing, etc and other","Asset failure","Equipment failure","Capacity upgrade","New line on new route - dual circuit"]
[null,null,"Other","Other","Operational error","Voltage upgrade","New line on new route - other"]
[null,"Asset failure","LV","Overloads","Vegetation","Other","Line rebuild over existing route - single circuit"]
[null,null,"Distribution substation","Planned","Animals",null,"Line rebuild over existing route - dual circuit"]
[null,null,"HV","Network business","Third party impacts",null,"Reconductor - Single circuit"]
[null,null,"Zone substation","Third party","Transmission failure",null,"Reconductor - Dual circuit"]
[null,null,"Subtransmission","Unknown","Load shedding",null,"Reconductor - Other"]
[null,"Other","insert description of 'other'","Vegetation","Inter-distributor connection failure",null,"Line upgrade - raising/retensoring"]
[null,"Overloads","-","Weather","Other",null,"Line upgrade - voltage upgrade"]
[null,"Planned","-","2 - STPIS Exclusion (3.3)(a)",null,null,"Line upgrade - capacity"]
[null,"Network business","Network error","3 - STPIS Exclusion (3.3)(a)",null,null,"String spare circuit"]
[null,null,"Switching and protection error","4 - STPIS Exclusion (3.3)(a)",null,null,"Other"]
[null,"Third party","Fire","5 - STPIS Exclusion (3.3)(a)"]
[null,null,"Other","6 - STPIS Exclusion (3.3)(a)"]
[null,null,"Dig-in","7 - STPIS Exclusion (3.3)(a)"]
[null,null,"Unauthorised access"]
[null,null,"Vehicle impact"]
[null,"Unknown","Unknown"]
[null,"Vegetation","Blow-in/Fall-in - NSP responsibility"]
[null,null,"Grow-in - NSP responsibility"]
[null,null,"Blow-in/Fall-in - Other responsible party"]
[null,null,"Grow-in - Other responsible party"]
[null,"Weather"]
[null,"2 - STPIS Exclusion (3.3)(a)"]
[null,"3 - STPIS Exclusion (3.3)(a)"]
[null,"4 - STPIS Exclusion (3.3)(a)"]
[null,"5 - STPIS Exclusion (3.3)(a)"]
[null,"6 - STPIS Exclusion (3.3)(a)"]
[null,"7 - STPIS Exclusion (3.3)(a)"]
[]
[]
[]
[]
[null,null,null,null,null,null,null,null,null,null,null,null,null,null,null,"The first row in these tables always refers to CRY in either it's financial or calendar format. "]
[null,null,null,null,null,null,null,null,null,null,null,null,null,null,null,"The correct column headings will be correctly generated in the relevant worksheets in Recast RIN templates"]
[]
[null,"These are indeces and lookup values for various dates. All step from the value placed in FRCP_y1 on the business and other details worksheet",null,null,null,null,null,null,null,null,null,null,null,null,"These date tables are currently used in the Recast templates to provide column headings and conditional formatting"]
[null,"dms_FRCPlength_Num_List","dms_FinalYear_List","dms_CRCPlength_Num_List","dms_CFinalYear_List","dms_FRCP_years",null,"dms_CRCP_years",null,"dms_CRCP_index",null,"dms_Financial_Years","dms_Calendar_Years",null,"CRY from input cell on business sheet","CRY - financial","dms_FinYears","CRY calendar","dms_CalYears"]
[null,1,"dms_FRCP_y1",1,"CRCP_y1",{"$f":"FRCP_y1","v":"2005-06"},"dms_FRCP_y1",{"$f":"IF(dms_RPT=\"financial\",VALUE(LEFT(dms_FRCP_y1,4)-1)&\"-\"&TEXT(VALUE(MID(dms_FRCP_y1,3,2)),\"00\"),VALUE(LEFT(dms_FRCP_y1,4)-1))","v":{"$error":"#NAME?"}},"dms_CRCP_yZ",1,null,"2005-06","2006",null,{"$f":"CRY","v":"2023-24"},{"$f":"CRY","v":"2023-24"},"dms_CRYf_y1",{"$f":"CRY","v":"2023-24"},"dms_CRYc_y1"]
[null,2,"dms_FRCP_y2",2,"CRCP_y2",{"$f":"IF(dms_RPT=\"financial\",VALUE(LEFT(dms_FRCP_y1,4)+1)&\"-\"&TEXT(VALUE(RIGHT(dms_FRCP_y1,2)+1),\"00\"),VALUE(LEFT(dms_FRCP_y1,4)+1))","v":{"$error":"#NAME?"}},"dms_FRCP_y2",{"$f":"IF(dms_RPT=\"financial\",VALUE(LEFT(dms_CRCP_yZ,4)-1)&\"-\"&TEXT(VALUE(MID(dms_CRCP_yZ,3,2)),\"00\"),VALUE(LEFT(dms_CRCP_yZ,4)-1))","v":{"$error":"#NAME?"}},"dms_CRCP_yY",2,null,"2006-07","2007",null,null,{"$f":"VALUE(LEFT(dms_CRYf_y1,4)+1)&\"-\"&TEXT(MID(dms_CRYf_y1,3,2)+2,\"00\")","v":"2024-25"},"dms_CRYf_y2",{"$f":"VALUE(LEFT(dms_CRYc_y1,4)+1)","v":2024},"dms_CRYc_y2"]
[null,3,"dms_FRCP_y3",3,"CRCP_y3",{"$f":"IF(dms_RPT=\"financial\",VALUE(LEFT(dms_FRCP_y2,4)+1)&\"-\"&TEXT(VALUE(RIGHT(dms_FRCP_y2,2)+1),\"00\"),VALUE(LEFT(dms_FRCP_y2,4)+1))","v":{"$error":"#NAME?"}},"dms_FRCP_y3",{"$f":"IF(dms_RPT=\"financial\",VALUE(LEFT(dms_CRCP_yY,4)-1)&\"-\"&TEXT(VALUE(MID(dms_CRCP_yY,3,2)),\"00\"),VALUE(LEFT(dms_CRCP_yY,4)-1))","v":{"$error":"#NAME?"}},"dms_CRCP_yX",3,null,"2007-08","2008",null,null,{"$f":"VALUE(LEFT(dms_CRYf_y2,4)+1)&\"-\"&TEXT(MID(dms_CRYf_y2,3,2)+2,\"00\")","v":"2025-26"},"dms_CRYf_y3",{"$f":"VALUE(LEFT(dms_CRYc_y2,4)+1)","v":2025},"dms_CRYc_y3"]
[null,4,"dms_FRCP_y4",4,"CRCP_y4",{"$f":"IF(dms_RPT=\"financial\",VALUE(LEFT(dms_FRCP_y3,4)+1)&\"-\"&TEXT(VALUE(RIGHT(dms_FRCP_y3,2)+1),\"00\"),VALUE(LEFT(dms_FRCP_y3,4)+1))","v":{"$error":"#NAME?"}},"dms_FRCP_y4",{"$f":"IF(dms_RPT=\"financial\",VALUE(LEFT(dms_CRCP_yX,4)-1)&\"-\"&TEXT(VALUE(MID(dms_CRCP_yX,3,2)),\"00\"),VALUE(LEFT(dms_CRCP_yX,4)-1))","v":{"$error":"#NAME?"}},"dms_CRCP_yW",4,null,"2008-09","2009",null,null,{"$f":"VALUE(LEFT(dms_CRYf_y3,4)+1)&\"-\"&TEXT(MID(dms_CRYf_y3,3,2)+2,\"00\")","v":"2026-27"},"dms_CRYf_y4",{"$f":"VALUE(LEFT(dms_CRYc_y3,4)+1)","v":2026},"dms_CRYc_y4"]
[null,5,"dms_FRCP_y5",5,"CRCP_y5",{"$f":"IF(dms_RPT=\"financial\",VALUE(LEFT(dms_FRCP_y4,4)+1)&\"-\"&TEXT(VALUE(RIGHT(dms_FRCP_y4,2)+1),\"00\"),VALUE(LEFT(dms_FRCP_y4,4)+1))","v":{"$error":"#NAME?"}},"dms_FRCP_y5",{"$f":"IF(dms_RPT=\"financial\",VALUE(LEFT(dms_CRCP_yW,4)-1)&\"-\"&TEXT(VALUE(MID(dms_CRCP_yW,3,2)),\"00\"),VALUE(LEFT(dms_CRCP_yW,4)-1))","v":{"$error":"#NAME?"}},"dms_CRCP_yV",5,null,"2009-10",2010,null,null,{"$f":"VALUE(LEFT(dms_CRYf_y4,4)+1)&\"-\"&TEXT(MID(dms_CRYf_y4,3,2)+2,\"00\")","v":"2027-28"},"dms_CRYf_y5",{"$f":"VALUE(LEFT(dms_CRYc_y4,4)+1)","v":2027},"dms_CRYc_y5"]
[null,6,"dms_FRCP_y6",6,"CRCP_y6",{"$f":"IF(dms_RPT=\"financial\",VALUE(LEFT(dms_FRCP_y5,4)+1)&\"-\"&TEXT(VALUE(RIGHT(dms_FRCP_y5,2)+1),\"00\"),VALUE(LEFT(dms_FRCP_y5,4)+1))","v":{"$error":"#NAME?"}},"dms_FRCP_y6",{"$f":"IF(dms_RPT=\"financial\",VALUE(LEFT(dms_CRCP_yV,4)-1)&\"-\"&TEXT(VALUE(MID(dms_CRCP_yV,3,2)),\"00\"),VALUE(LEFT(dms_CRCP_yV,4)-1))","v":{"$error":"#NAME?"}},"dms_CRCP_yU",6,null,"2010-11",2011,null,null,{"$f":"VALUE(LEFT(dms_CRYf_y5,4)+1)&\"-\"&TEXT(MID(dms_CRYf_y5,3,2)+2,\"00\")","v":"2028-29"},"dms_CRYf_y6",{"$f":"VALUE(LEFT(dms_CRYc_y5,4)+1)","v":2028},"dms_CRYc_y6"]
[null,7,"dms_FRCP_y7",7,"CRCP_y7",{"$f":"IF(dms_RPT=\"financial\",VALUE(LEFT(dms_FRCP_y6,4)+1)&\"-\"&TEXT(VALUE(RIGHT(dms_FRCP_y6,2)+1),\"00\"),VALUE(LEFT(dms_FRCP_y6,4)+1))","v":{"$error":"#NAME?"}},"dms_FRCP_y7",{"$f":"IF(dms_RPT=\"financial\",VALUE(LEFT(dms_CRCP_yU,4)-1)&\"-\"&TEXT(VALUE(MID(dms_CRCP_yU,3,2)),\"00\"),VALUE(LEFT(dms_CRCP_yU,4)-1))","v":{"$error":"#NAME?"}},"dms_CRCP_yT",7,null,"2011-12",2012,null,null,{"$f":"VALUE(LEFT(dms_CRYf_y6,4)+1)&\"-\"&TEXT(MID(dms_CRYf_y6,3,2)+2,\"00\")","v":"2029-30"},"dms_CRYf_y7",{"$f":"VALUE(LEFT(dms_CRYc_y6,4)+1)","v":2029},"dms_CRYc_y7"]
[null,8,"dms_FRCP_y8",8,"CRCP_y8",{"$f":"IF(dms_RPT=\"financial\",VALUE(LEFT(dms_FRCP_y7,4)+1)&\"-\"&TEXT(VALUE(RIGHT(dms_FRCP_y7,2)+1),\"00\"),VALUE(LEFT(dms_FRCP_y7,4)+1))","v":{"$error":"#NAME?"}},"dms_FRCP_y8",{"$f":"IF(dms_RPT=\"financial\",VALUE(LEFT(dms_CRCP_yT,4)-1)&\"-\"&TEXT(VALUE(MID(dms_CRCP_yT,3,2)),\"00\"),VALUE(LEFT(dms_CRCP_yT,4)-1))","v":{"$error":"#NAME?"}},"dms_CRCP_yS",8,null,"2012-13",2013,null,null,{"$f":"VALUE(LEFT(dms_CRYf_y7,4)+1)&\"-\"&TEXT(MID(dms_CRYf_y7,3,2)+2,\"00\")","v":"2030-31"},"dms_CRYf_y8",{"$f":"VALUE(LEFT(dms_CRYc_y7,4)+1)","v":2030},"dms_CRYc_y8"]
[null,9,"dms_FRCP_y9",9,"CRCP_y9",{"$f":"IF(dms_RPT=\"financial\",VALUE(LEFT(dms_FRCP_y8,4)+1)&\"-\"&TEXT(VALUE(RIGHT(dms_FRCP_y8,2)+1),\"00\"),VALUE(LEFT(dms_FRCP_y8,4)+1))","v":{"$error":"#NAME?"}},"dms_FRCP_y9",{"$f":"IF(dms_RPT=\"financial\",VALUE(LEFT(dms_CRCP_yS,4)-1)&\"-\"&TEXT(VALUE(MID(dms_CRCP_yS,3,2)),\"00\"),VALUE(LEFT(dms_CRCP_yS,4)-1))","v":{"$error":"#NAME?"}},"dms_CRCP_yR",9,null,"2013-14",2014,null,null,{"$f":"VALUE(LEFT(dms_CRYf_y8,4)+1)&\"-\"&TEXT(MID(dms_CRYf_y8,3,2)+2,\"00\")","v":"2031-32"},"dms_CRYf_y9",{"$f":"VALUE(LEFT(dms_CRYc_y8,4)+1)","v":2031},"dms_CRYc_y9"]
[null,10,"dms_FRCP_y10",10,"CRCP_y10",{"$f":"IF(dms_RPT=\"financial\",VALUE(LEFT(dms_FRCP_y9,4)+1)&\"-\"&TEXT(VALUE(RIGHT(dms_FRCP_y9,2)+1),\"00\"),VALUE(LEFT(dms_FRCP_y9,4)+1))","v":{"$error":"#NAME?"}},"dms_FRCP_y10",{"$f":"IF(dms_RPT=\"financial\",VALUE(LEFT(dms_CRCP_yR,4)-1)&\"-\"&TEXT(VALUE(MID(dms_CRCP_yR,3,2)),\"00\"),VALUE(LEFT(dms_CRCP_yR,4)-1))","v":{"$error":"#NAME?"}},"dms_CRCP_yQ",10,null,"2014-15",2015,null,null,{"$f":"VALUE(LEFT(dms_CRYf_y9,4)+1)&\"-\"&TEXT(MID(dms_CRYf_y9,3,2)+2,\"00\")","v":"2032-33"},"dms_CRYf_y10",{"$f":"VALUE(LEFT(dms_CRYc_y9,4)+1)","v":2032},"dms_CRYc_y10"]
[null,11,"dms_FRCP_y11",11,"CRCP_y11",{"$f":"IF(dms_RPT=\"financial\",VALUE(LEFT(dms_FRCP_y10,4)+1)&\"-\"&TEXT(VALUE(RIGHT(dms_FRCP_y10,2)+1),\"00\"),VALUE(LEFT(dms_FRCP_y10,4)+1))","v":{"$error":"#NAME?"}},"dms_FRCP_y11",{"$f":"IF(dms_RPT=\"financial\",VALUE(LEFT(dms_CRCP_yQ,4)-1)&\"-\"&TEXT(VALUE(MID(dms_CRCP_yQ,3,2)),\"00\"),VALUE(LEFT(dms_CRCP_yQ,4)-1))","v":{"$error":"#NAME?"}},"dms_CRCP_yP",11,null,"2015-16",2016,null,null,{"$f":"VALUE(LEFT(dms_CRYf_y10,4)+1)&\"-\"&TEXT(MID(dms_CRYf_y10,3,2)+2,\"00\")","v":"2033-34"},"dms_CRYf_y11",{"$f":"VALUE(LEFT(dms_CRYc_y10,4)+1)","v":2033},"dms_CRYc_y11"]
[null,12,"dms_FRCP_y12",12,"CRCP_y12",{"$f":"IF(dms_RPT=\"financial\",VALUE(LEFT(dms_FRCP_y11,4)+1)&\"-\"&TEXT(VALUE(RIGHT(dms_FRCP_y11,2)+1),\"00\"),VALUE(LEFT(dms_FRCP_y11,4)+1))","v":{"$error":"#NAME?"}},"dms_FRCP_y12",{"$f":"IF(dms_RPT=\"financial\",VALUE(LEFT(dms_CRCP_yP,4)-1)&\"-\"&TEXT(VALUE(MID(dms_CRCP_yP,3,2)),\"00\"),VALUE(LEFT(dms_CRCP_yP,4)-1))","v":{"$error":"#NAME?"}},"dms_CRCP_yO",12,null,"2016-17",2017,null,null,{"$f":"VALUE(LEFT(dms_CRYf_y11,4)+1)&\"-\"&TEXT(MID(dms_CRYf_y11,3,2)+2,\"00\")","v":"2034-35"},"dms_CRYf_y12",{"$f":"VALUE(LEFT(dms_CRYc_y11,4)+1)","v":2034},"dms_CRYc_y12"]
[null,13,"dms_FRCP_y13",13,"CRCP_y13",{"$f":"IF(dms_RPT=\"financial\",VALUE(LEFT(dms_FRCP_y12,4)+1)&\"-\"&TEXT(VALUE(RIGHT(dms_FRCP_y12,2)+1),\"00\"),VALUE(LEFT(dms_FRCP_y12,4)+1))","v":{"$error":"#NAME?"}},"dms_FRCP_y13",{"$f":"IF(dms_RPT=\"financial\",VALUE(LEFT(dms_CRCP_yO,4)-1)&\"-\"&TEXT(VALUE(MID(dms_CRCP_yO,3,2)),\"00\"),VALUE(LEFT(dms_CRCP_yO,4)-1))","v":{"$error":"#NAME?"}},"dms_CRCP_yN",13,null,"2017-18",2018,null,null,{"$f":"VALUE(LEFT(dms_CRYf_y12,4)+1)&\"-\"&TEXT(MID(dms_CRYf_y12,3,2)+2,\"00\")","v":"2035-36"},"dms_CRYf_y13",{"$f":"VALUE(LEFT(dms_CRYc_y12,4)+1)","v":2035},"dms_CRYc_y13"]
[null,14,"dms_FRCP_y14",14,"CRCP_y14",{"$f":"IF(dms_RPT=\"financial\",VALUE(LEFT(dms_FRCP_y13,4)+1)&\"-\"&TEXT(VALUE(RIGHT(dms_FRCP_y13,2)+1),\"00\"),VALUE(LEFT(dms_FRCP_y13,4)+1))","v":{"$error":"#NAME?"}},"dms_FRCP_y14",{"$f":"IF(dms_RPT=\"financial\",VALUE(LEFT(dms_CRCP_yN,4)-1)&\"-\"&TEXT(VALUE(MID(dms_CRCP_yN,3,2)),\"00\"),VALUE(LEFT(dms_CRCP_yN,4)-1))","v":{"$error":"#NAME?"}},"dms_CRCP_yM",14,null,"2018-19",2019,null,null,{"$f":"VALUE(LEFT(dms_CRYf_y13,4)+1)&\"-\"&TEXT(MID(dms_CRYf_y13,3,2)+2,\"00\")","v":"2036-37"},"dms_CRYf_y14",{"$f":"VALUE(LEFT(dms_CRYc_y13,4)+1)","v":2036},"dms_CRYc_y14"]
[null,15,"dms_FRCP_y15",15,"CRCP_y15",{"$f":"IF(dms_RPT=\"financial\",VALUE(LEFT(dms_FRCP_y14,4)+1)&\"-\"&TEXT(VALUE(RIGHT(dms_FRCP_y14,2)+1),\"00\"),VALUE(LEFT(dms_FRCP_y14,4)+1))","v":{"$error":"#NAME?"}},"dms_FRCP_y15",{"$f":"IF(dms_RPT=\"financial\",VALUE(LEFT(dms_CRCP_yM,4)-1)&\"-\"&TEXT(VALUE(MID(dms_CRCP_yM,3,2)),\"00\"),VALUE(LEFT(dms_CRCP_yM,4)-1))","v":{"$error":"#NAME?"}},"dms_CRCP_yL",15,null,"2019-20",2020,null,null,{"$f":"VALUE(LEFT(dms_CRYf_y14,4)+1)&\"-\"&TEXT(MID(dms_CRYf_y14,3,2)+2,\"00\")","v":"2037-38"},"dms_CRYf_y15",{"$f":"VALUE(LEFT(dms_CRYc_y14,4)+1)","v":2037},"dms_CRYc_y15"]
[null,null,null,null,null,null,null,null,null,null,null,"2020-21",2021,null,null,{"$f":"VALUE(LEFT(dms_CRYf_y15,4)+1)&\"-\"&TEXT(MID(dms_CRYf_y15,3,2)+2,\"00\")","v":"2038-39"},"dms_CRYf_y16",{"$f":"VALUE(LEFT(dms_CRYc_y15,4)+1)","v":2038},"dms_CRYc_y16"]
[null,"These are drop down lists for businesses to select the correct FRCP_y1 on the business and other details worksheet.\nThis also populates the column headings in the worksheets",null,null,null,null,null,null,null,null,null,"2021-22",2022,null,null,{"$f":"VALUE(LEFT(dms_CRYf_y16,4)+1)&\"-\"&TEXT(MID(dms_CRYf_y16,3,2)+2,\"00\")","v":"2039-40"},"dms_CRYf_y17",{"$f":"VALUE(LEFT(dms_CRYc_y16,4)+1)","v":2039},"dms_CRYc_y17"]
[null,"dms_RCP_fyear_list","dms_CRY_ListF","dms_CRY_ListC","dms_RCP_cyear_list","dms_FRCP_fyear_list","dms_FRCP_ListF","dms_FRCP_ListC","dms_FRCP_cyear_list",null,null,"2022-23",2023,null,null,{"$f":"VALUE(LEFT(dms_CRYf_y17,4)+1)&\"-\"&TEXT(MID(dms_CRYf_y17,3,2)+2,\"00\")","v":"2040-41"},"dms_CRYf_y18",{"$f":"VALUE(LEFT(dms_CRYc_y17,4)+1)","v":2040},"dms_CRYc_y18"]
[null,"dms_y1",{"$f":"CRY","v":"2023-24"},"2006","dms_cy1","dms_frcp_fy1","2010-11",2011,"dms_crcp_cy1",null,null,"2023-24",2024,null,null,{"$f":"VALUE(LEFT(dms_CRYf_y18,4)+1)&\"-\"&TEXT(MID(dms_CRYf_y18,3,2)+2,\"00\")","v":"2041-42"},"dms_CRYf_y19",{"$f":"VALUE(LEFT(dms_CRYc_y18,4)+1)","v":2041},"dms_CRYc_y19"]
[null,"dms_y2",{"$f":"IF(dms_RPT=\"financial\",VALUE(LEFT(CRY,4)+1)&\"-\"&TEXT(MID(CRY,3,2)+2,\"00\"),VALUE(LEFT(CRY,4)+1))","v":{"$error":"#NAME?"}},"2007","dms_cy2","dms_frcp_fy2","2011-12",2012,"dms_crcp_cy2",null,null,"2024-25",2025,null,null,{"$f":"VALUE(LEFT(dms_CRYf_y19,4)+1)&\"-\"&TEXT(MID(dms_CRYf_y19,3,2)+2,\"00\")","v":"2042-43"},"dms_CRYf_y20",{"$f":"VALUE(LEFT(dms_CRYc_y19,4)+1)","v":2042},"dms_CRYc_y20"]
[null,"dms_y3",{"$f":"IF(dms_RPT=\"financial\",VALUE(LEFT(dms_fy2,4)+1)&\"-\"&TEXT(MID(dms_fy2,3,2)+2,\"00\"),VALUE(LEFT(dms_fy2,4)+1))","v":{"$error":"#NAME?"}},"2008","dms_cy3","dms_frcp_fy3","2012-13",2013,"dms_crcp_cy3",null,null,"2025-26",2026]
[null,"dms_y4",{"$f":"IF(dms_RPT=\"financial\",VALUE(LEFT(dms_fy3,4)+1)&\"-\"&TEXT(MID(dms_fy3,3,2)+2,\"00\"),VALUE(LEFT(dms_fy3,4)+1))","v":{"$error":"#NAME?"}},"2009","dms_cy4","dms_frcp_fy4","2013-14",2014,"dms_crcp_cy4",null,null,"2026-27",2027]
[null,"dms_y5",{"$f":"IF(dms_RPT=\"financial\",VALUE(LEFT(dms_fy4,4)+1)&\"-\"&TEXT(MID(dms_fy4,3,2)+2,\"00\"),VALUE(LEFT(dms_fy4,4)+1))","v":{"$error":"#NAME?"}},2010,"dms_cy5","dms_frcp_fy5","2014-15",2015,"dms_crcp_cy5",null,null,"2027-28",2028]
[null,"dms_y6",{"$f":"IF(dms_RPT=\"financial\",VALUE(LEFT(dms_fy5,4)+1)&\"-\"&TEXT(MID(dms_fy5,3,2)+2,\"00\"),VALUE(LEFT(dms_fy5,4)+1))","v":{"$error":"#NAME?"}},2011,"dms_cy6","dms_frcp_fy6","2015-16",2016,"dms_crcp_cy6",null,null,"2028-29",2029]
[null,"dms_y7",{"$f":"IF(dms_RPT=\"financial\",VALUE(LEFT(dms_fy6,4)+1)&\"-\"&TEXT(MID(dms_fy6,3,2)+2,\"00\"),VALUE(LEFT(dms_fy6,4)+1))","v":{"$error":"#NAME?"}},2012,"dms_cy7","dms_frcp_fy7","2016-17",2017,"dms_crcp_cy7",null,null,"2029-30",2030]
[null,"dms_y8",{"$f":"IF(dms_RPT=\"financial\",VALUE(LEFT(dms_fy7,4)+1)&\"-\"&TEXT(MID(dms_fy7,3,2)+2,\"00\"),VALUE(LEFT(dms_fy7,4)+1))","v":{"$error":"#NAME?"}},2013,"dms_cy8","dms_frcp_fy8","2017-18",2018,"dms_crcp_cy8",null,null,"2030-31",2031]
[null,"dms_y9",{"$f":"IF(dms_RPT=\"financial\",VALUE(LEFT(dms_fy8,4)+1)&\"-\"&TEXT(MID(dms_fy8,3,2)+2,\"00\"),VALUE(LEFT(dms_fy8,4)+1))","v":{"$error":"#NAME?"}},2014,"dms_cy9","dms_frcp_fy9","2018-19",2019,"dms_crcp_cy9",null,null,"2031-32",2032]
[null,"dms_y10",{"$f":"IF(dms_RPT=\"financial\",VALUE(LEFT(dms_fy9,4)+1)&\"-\"&TEXT(MID(dms_fy9,3,2)+2,\"00\"),VALUE(LEFT(dms_fy9,4)+1))","v":{"$error":"#NAME?"}},2015,"dms_cy10","dms_frcp_fy10","2019-20",2020,"dms_crcp_cy10",null,null,"2032-33",2033]
[null,"dms_y11",{"$f":"IF(dms_RPT=\"financial\",VALUE(LEFT(dms_fy10,4)+1)&\"-\"&TEXT(MID(dms_fy10,3,2)+2,\"00\"),VALUE(LEFT(dms_fy10,4)+1))","v":{"$error":"#NAME?"}},2016,"dms_cy11","dms_frcp_fy11","2020-21",2021,"dms_crcp_cy11",null,null,"2033-34",2034]
[null,"dms_y12",{"$f":"IF(dms_RPT=\"financial\",VALUE(LEFT(dms_fy11,4)+1)&\"-\"&TEXT(MID(dms_fy11,3,2)+2,\"00\"),VALUE(LEFT(dms_fy11,4)+1))","v":{"$error":"#NAME?"}},2017,"dms_cy12","dms_frcp_fy12","2021-22",2022,"dms_crcp_cy12",null,null,"2034-35",2035]
[null,"dms_y13",{"$f":"IF(dms_RPT=\"financial\",VALUE(LEFT(dms_fy12,4)+1)&\"-\"&TEXT(MID(dms_fy12,3,2)+2,\"00\"),VALUE(LEFT(dms_fy12,4)+1))","v":{"$error":"#NAME?"}},2018,"dms_cy13","dms_frcp_fy13","2022-23",2023,"dms_crcp_cy13",null,null,"2035-36",2036]
[null,"dms_y14",{"$f":"IF(dms_RPT=\"financial\",VALUE(LEFT(dms_fy13,4)+1)&\"-\"&TEXT(MID(dms_fy13,3,2)+2,\"00\"),VALUE(LEFT(dms_fy13,4)+1))","v":{"$error":"#NAME?"}},2019,"dms_cy14","dms_frcp_fy14","2023-24",2024,"dms_crcp_cy14"]
[null,"dms_y15",{"$f":"IF(dms_RPT=\"financial\",VALUE(LEFT(dms_fy14,4)+1)&\"-\"&TEXT(MID(dms_fy14,3,2)+2,\"00\"),VALUE(LEFT(dms_fy14,4)+1))","v":{"$error":"#NAME?"}},2020,"dms_cy15","dms_frcp_fy15","2024-25",2025,"dms_crcp_cy15"]
[null,"dms_y16",{"$f":"IF(dms_RPT=\"financial\",VALUE(LEFT(dms_fy15,4)+1)&\"-\"&TEXT(MID(dms_fy15,3,2)+2,\"00\"),VALUE(LEFT(dms_fy15,4)+1))","v":{"$error":"#NAME?"}},2021,"dms_cy16"]
[null,"dms_y17",{"$f":"IF(dms_RPT=\"financial\",VALUE(LEFT(dms_fy16,4)+1)&\"-\"&TEXT(MID(dms_fy16,3,2)+2,\"00\"),VALUE(LEFT(dms_fy16,4)+1))","v":{"$error":"#NAME?"}},2022,"dms_cy17"]
[null,"dms_y18",{"$f":"IF(dms_RPT=\"financial\",VALUE(LEFT(dms_fy17,4)+1)&\"-\"&TEXT(MID(dms_fy17,3,2)+2,\"00\"),VALUE(LEFT(dms_fy17,4)+1))","v":{"$error":"#NAME?"}},2023,"dms_cy18"]
[null,"dms_y19",{"$f":"IF(dms_RPT=\"financial\",VALUE(LEFT(dms_fy18,4)+1)&\"-\"&TEXT(MID(dms_fy18,3,2)+2,\"00\"),VALUE(LEFT(dms_fy18,4)+1))","v":{"$error":"#NAME?"}},2024,"dms_cy19"]
[null,"dms_y20",{"$f":"IF(dms_RPT=\"financial\",VALUE(LEFT(dms_fy19,4)+1)&\"-\"&TEXT(MID(dms_fy19,3,2)+2,\"00\"),VALUE(LEFT(dms_fy19)+1))","v":{"$error":"#NAME?"}},2025,"dms_cy20"]
[]
[]
[]
[]
[]
[null,"These \"row descriptions\" are the column headings in the various templates but become row descriptions in the ETL process"]
[null,null,"Table 6.3 sustained interruptions - row descriptions"]
[null,null,"dms_060301_CustNo_Affected_Row","dms_060301_Avg_Duration_Sustained_Int_Row","dms_060301_Effect_unplanned_SAIDI_Row","dms_060301_Effect_unplanned_SAIFI_Row"]
[null,null,"Number of customers affected by the interruption","Average duration of sustained customer interruption","Effect on unplanned SAIDI","Effect on unplanned SAIFI"]
[]
[]
[]
[null,null,"Table 6.1 telephone answering - row descriptions and start date"]
[null,null,"dms_060101_Rows","dms_060102_Rows","dms_060101_StartDateTxt"]
[null,null,"Total number of calls \n(after removing excluded events)","Number of calls answered within 30 seconds \n(after excluding excluded events) ",{"$f":"dms_060701_StartDateTxt","v":"1-Jul-2023"}]
[]
[]
[]
[null,null,null,null,null,null,null,"dms_0603_FeederList",{"$f":"INDEX(dms_FeederName_1,MATCH(dms_TradingName,dms_TradingName_List))","v":"CBD"},{"$f":"INDEX(dms_FeederName_2,MATCH(dms_TradingName,dms_TradingName_List))","v":"Urban"},{"$f":"INDEX(dms_FeederName_3,MATCH(dms_TradingName,dms_TradingName_List))","v":"Short rural"},{"$f":"INDEX(dms_FeederName_4,MATCH(dms_TradingName,dms_TradingName_List))","v":"Long rural"}]
[null,null,"Table 6.7.1 - daily performance data - unplanned - MAIFI  -- row descriptions and header named range values"]
[null,null,"These headings (Lists) are determined from the INDEX/MATCH function on the NSP selected on the Business & other details sheet"]
[null,"dms_060701_Feeder_Header_Lvl4",{"$f":"INDEX(dms_FeederName_1,MATCH(dms_TradingName,dms_TradingName_List))","v":"CBD"},{"$f":"INDEX(dms_FeederName_1,MATCH(dms_TradingName,dms_TradingName_List))","v":"CBD"},{"$f":"INDEX(dms_FeederName_2,MATCH(dms_TradingName,dms_TradingName_List))","v":"Urban"},{"$f":"INDEX(dms_FeederName_2,MATCH(dms_TradingName,dms_TradingName_List))","v":"Urban"},{"$f":"INDEX(dms_FeederName_3,MATCH(dms_TradingName,dms_TradingName_List))","v":"Short rural"},{"$f":"INDEX(dms_FeederName_3,MATCH(dms_TradingName,dms_TradingName_List))","v":"Short rural"},{"$f":"INDEX(dms_FeederName_4,MATCH(dms_TradingName,dms_TradingName_List))","v":"Long rural"},{"$f":"INDEX(dms_FeederName_4,MATCH(dms_TradingName,dms_TradingName_List))","v":"Long rural"},{"$f":"IF((INDEX(dms_FeederName_5,MATCH(dms_TradingName,dms_TradingName_List))=0),\"Network\",(INDEX(dms_FeederName_5,MATCH(dms_TradingName,dms_TradingName_List))))","v":"Network"},{"$f":"IF((INDEX(dms_FeederName_5,MATCH(dms_TradingName,dms_TradingName_List))=0),\"Network\",(INDEX(dms_FeederName_5,MATCH(dms_TradingName,dms_TradingName_List))))","v":"Network"},"Network","Network"]
[]
[null,"dms_060701_Rows","All events","After removing excluded events","All events","After removing excluded events","All events","After removing excluded events","All events","After removing excluded events","All events","After removing excluded events","All events","After removing excluded events"]
[null,null,"the number of column headings changes from 10 to 12 depending on the number of feeder categories for the NSP"]
[]
[]
[]
[]
[null,null,"Table 6.8.1 - row descriptions"]
[null,null,"dms_060801_01_Rows","dms_060801_02_Rows","dms_060801_03_Rows","dms_060801_04_Rows"]
[null,null,"Number of interruptions","Duration of interruptions","Total unplanned minutes off supply","Effect on unplanned MAIFI"]
[]
[]
[]
[]
[null,null,"Table 7.9.4 - market impact component - row descriptions"]
[null,"dms_070904_01_Rows","without exclusions","with exclusions"]
[]
[]
[]
[]
[]
[null,null,"Use this to add to existing files"]
[null,null,"ARRs 6.7 STPIS daily performance"]
[null,null,"dms_060101_Values","dms_060102_Values","dms_060701_Values"]
[null,null,"dms_LeapYear"]
[]
[null,null,"ARR's  6.8 STPIS exclusions"]
[null,null,"dms_060801_Event_Date","dms_060801_OutageID","dms_060801_FeederID","dms_060801_FeederClass","dms_060801_CauseID","dms_060801_01_Values","dms_060801_02_Values","dms_060801_03_Values","dms_060801_Excl_Cat","dms_060801_04_Values"]
[null,null,"dms_060801_StartCell"]
[]
[null,null,"CA 6.3 sustained interruptions"]
[null,null,"dms_060301_Event_Date","dms_060301_Event_Time","dms_060301_AssetID","dms_060301_FeederClass","dms_060301_Reason","dms_060301_DetailedReason","dms_060301_CustNo_Affected_Values","dms_060301_Avg_Duration_Sustained_Int_Values","dms_060301_Effect_unplanned_SAIDI_Values","dms_060301_Effect_unplanned_SAIFI_Values","dms_060301_MED"]

{"sheet":"Business & other details","index":2,"n_rows":130,"n_cols":81,"rows_kept":130,"cut":false,"hidden":true,"merged":[[0,7,2,15],[3,21,3,57],[6,21,6,75],[8,16,8,93],[17,21,17,35],[17,37,17,58],[26,21,26,35],[26,37,26,51],[26,60,26,66],[26,68,26,82],[18,21,18,35],[18,37,18,48],[24,21,24,35],[24,37,24,58],[24,60,24,66],[24,68,24,89],[25,21,25,35],[25,37,25,58],[25,60,25,66],[25,68,25,89],[27,21,27,35],[27,37,27,40],[27,49,27,51],[27,60,27,66],[27,68,27,71],[27,80,27,82],[33,21,33,35],[33,37,33,58],[33,60,33,66],[33,68,33,89],[34,21,34,35],[34,37,34,58],[34,60,34,66],[34,68,34,89],[35,21,35,35],[35,37,35,58],[35,60,35,66],[35,68,35,89],[43,25,43,34],[43,37,43,44],[43,46,43,53],[43,55,43,62],[43,64,43,71],[43,73,43,80],[44,37,44,44],[44,46,44,53],[44,55,44,62],[44,64,44,71],[44,73,44,80],[45,37,45,44],[45,46,45,53],[45,55,45,62],[45,64,45,71],[45,73,45,80],[47,25,47,34],[47,37,47,44],[47,46,47,53],[47,55,47,62],[47,64,47,71],[47,73,47,80],[48,37,48,44],[48,46,48,53],[48,55,48,62],[48,64,48,71],[48,73,48,80],[49,37,49,44],[49,46,49,53],[49,55,49,62],[49,64,49,71],[49,73,49,80],[51,25,51,34],[51,37,51,44],[51,46,51,53],[51,55,51,62],[51,64,51,71],[51,73,51,80],[52,37,52,44],[52,46,52,53],[52,55,52,62],[52,64,52,71],[52,73,52,80],[53,37,53,44],[53,46,53,53],[53,55,53,62],[53,64,53,71],[53,73,53,80],[55,25,55,34],[55,37,55,44],[57,25,57,34],[57,37,57,44],[63,25,63,34],[63,37,63,52],[71,25,73,34],[71,37,73,81],[75,25,75,34],[75,37,75,52],[65,25,65,34],[65,37,65,52],[67,25,67,34],[67,37,67,52],[69,25,69,34],[69,37,69,52]]}
[null,null,null,null,null,null,null,null,null,null,null,null,null,null,null,null,null,null,null,null,null,"ANNUAL REPORTING"]
[null,null,null,null,null,null,null,null,null,null,null,null,null,null,null,null,null,null,null,null,null,{"$f":"INDEX(dms_TradingNameFull_List,MATCH(dms_TradingName,dms_TradingName_List))","v":"Ergon Energy"}]
[null,null,null,null,null,null,null,null,null,null,null,null,null,null,null,null,null,null,null,null,null,{"$f":"CRY","v":"2023-24"}]
[null,null,null,null,null,null,null,null,null,null,null,null,null,null,null,null,null,null,null,null,null,"BUSINESS & OTHER DETAILS"]
[]
[null,null,null,null,null,null,null,null,null,null,null,null,null,null,null,null,null,null,null,null,null,"INSTRUCTIONS"]
[null,null,null,null,null,null,null,null,null,null,null,null,null,null,null,null,null,null,null,null,null,"Complete the following business details regulatory template before entering data or values in any other regulatory template. This regulatory template is linked to other cells within the spreadsheet and automatically generates column headings and conditional formatting to distinguish business specific input and non-input cells. "]
[]
[null,null,null,null,null,null,null,null,null,null,null,null,null,null,null,null,"SUBMISSION PARTICULARS INPUT SHEET"]
[]
[null,null,null,null,null,null,null,null,null,null,null,null,null,null,null,null," TEMPLATE DATE - MAY 2024"]
[]
[]
[null,null,null,null,null,null,null,null,null,null,null,null,null,null,null,null,null,null,null,null,null,"ENTITY DETAILS"]
[]
[null,null,null,null,null,null,null,null,null,null,null,null,null,null,null,null,null,null,null,null,null,"Business Name"]
[]
[null,null,null,null,null,null,null,null,null,null,null,null,null,null,null,null,null,null,null,null,null,"Short name",null,null,null,null,null,null,null,null,null,null,null,null,null,null,null,"Ergon Energy"]
[null,null,null,null,null,null,null,null,null,null,null,null,null,null,null,null,null,null,null,null,null,"ACN/ABN",null,null,null,null,null,null,null,null,null,null,null,null,null,null,null,{"$f":"INDEX(dms_ABN_List,MATCH(dms_TradingName,dms_TradingName_List))","v":50087646062}]
[]
[]
[]
[null,null,null,null,null,null,null,null,null,null,null,null,null,null,null,null,null,null,null,null,null,"Business Address",null,null,null,null,null,null,null,null,null,null,null,null,null,null,null,null,null,null,null,null,null,null,null,null,null,null,null,null,null,null,null,null,null,null,null,null,null,null,null,null,null,null,null,null,null,null,"Postal Address"]
[]
[null,null,null,null,null,null,null,null,null,null,null,null,null,null,null,null,null,null,null,null,null,"Address 1",null,null,null,null,null,null,null,null,null,null,null,null,null,null,null,"420 Flinders Street",null,null,null,null,null,null,null,null,null,null,null,null,null,null,null,null,null,null,null,null,null,null,"Address 1",null,null,null,null,null,null,null,"PO Box 1090"]
[null,null,null,null,null,null,null,null,null,null,null,null,null,null,null,null,null,null,null,null,null,"Address 2",null,null,null,null,null,null,null,null,null,null,null,null,null,null,null,{"$f":"IF(ISBLANK(INDEX(dms_Addr2_List,MATCH(dms_TradingName,dms_TradingName_List))),\"\",(INDEX(dms_Addr2_List,MATCH(dms_TradingName,dms_TradingName_List))))","v":""},null,null,null,null,null,null,null,null,null,null,null,null,null,null,null,null,null,null,null,null,null,null,"Address 2",null,null,null,null,null,null,null,{"$f":"IF(ISBLANK(INDEX(dms_PAddr2_List,MATCH(dms_TradingName,dms_TradingName_List))),\"\",(INDEX(dms_PAddr2_List,MATCH(dms_TradingName,dms_TradingName_List))))","v":""}]
[null,null,null,null,null,null,null,null,null,null,null,null,null,null,null,null,null,null,null,null,null,"Suburb",null,null,null,null,null,null,null,null,null,null,null,null,null,null,null,{"$f":"INDEX(dms_Suburb_List,MATCH(dms_TradingName,dms_TradingName_List))","v":"TOWNSVILLE"},null,null,null,null,null,null,null,null,null,null,null,null,null,null,null,null,null,null,null,null,null,null,"Suburb",null,null,null,null,null,null,null,"TOWNSVILLE"]
[null,null,null,null,null,null,null,null,null,null,null,null,null,null,null,null,null,null,null,null,null,"State",null,null,null,null,null,null,null,null,null,null,null,null,null,null,null,{"$f":"INDEX(dms_State_List,MATCH(dms_TradingName,dms_TradingName_List))","v":"Qld"},null,null,null,null,null,null,null,null,null,"Post code",null,4810,null,null,null,null,null,null,null,null,null,null,"State",null,null,null,null,null,null,null,{"$f":"INDEX(dms_PState_List,MATCH(dms_TradingName,dms_TradingName_List))","v":"QLD"},null,null,null,null,null,null,null,null,null,"Post code",null,4810]
[]
[null,null,null,null,null,null,null,null,null,null,null,null,null,null,null,null,null,null,null,null,null,null,null,null,null,null,null,null,null,null,null,null,null,null,null,null,null,null,null,null,null,null,null,null,null,null,null,null,null,null,null,null,"`"]
[]
[null,null,null,null,null,null,null,null,null,null,null,null,null,null,null,null,null,null,null,null,null,"Contact Names"]
[]
[null,null,null,null,null,null,null,null,null,null,null,null,null,null,null,null,null,null,null,null,null,"Name",null,null,null,null,null,null,null,null,null,null,null,null,null,null,null,null,null,null,null,null,null,null,null,null,null,null,null,null,null,null,null,null,null,null,null,null,null,null,"Name"]
[null,null,null,null,null,null,null,null,null,null,null,null,null,null,null,null,null,null,null,null,null,"Phone",null,null,null,null,null,null,null,null,null,null,null,null,null,null,null,null,null,null,null,null,null,null,null,null,null,null,null,null,null,null,null,null,null,null,null,null,null,null,"Phone"]
[null,null,null,null,null,null,null,null,null,null,null,null,null,null,null,null,null,null,null,null,null,"Email",null,null,null,null,null,null,null,null,null,null,null,null,null,null,null,null,null,null,null,null,null,null,null,null,null,null,null,null,null,null,null,null,null,null,null,null,null,null,"Email"]
[]
[]
[]
[]
[null,null,null,null,null,null,null,null,null,null,null,null,null,null,null,null,"REGULATORY CONTROL PERIODS"]
[]
[]
[null,null,null,null,null,null,null,null,null,null,null,null,null,null,null,null,null,null,null,null,null,null,null,null,null,"Forthcoming period",null,null,null,null,null,null,null,null,null,null,null,"2005-06",null,null,null,null,null,null,null,null,{"$f":"FRCP_y2","v":"2006-07"},null,null,null,null,null,null,null,null,{"$f":"FRCP_y3","v":"2007-08"},null,null,null,null,null,null,null,null,{"$f":"FRCP_y4","v":"2008-09"},null,null,null,null,null,null,null,null,{"$f":"FRCP_y5","v":"2009-10"}]
[null,null,null,null,null,null,null,null,null,null,null,null,null,null,null,null,null,null,null,null,null,null,null,null,null,null,null,null,null,null,null,null,null,null,null,null,null,{"$f":"FRCP_y6","v":"2010-11"},null,null,null,null,null,null,null,null,{"$f":"FRCP_y7","v":"2011-12"},null,null,null,null,null,null,null,null,{"$f":"FRCP_y8","v":"2012-13"},null,null,null,null,null,null,null,null,{"$f":"FRCP_y9","v":"2013-14"},null,null,null,null,null,null,null,null,{"$f":"FRCP_y10","v":"2014-15"}]
[null,null,null,null,null,null,null,null,null,null,null,null,null,null,null,null,null,null,null,null,null,null,null,null,null,null,null,null,null,null,null,null,null,null,null,null,null,{"$f":"FRCP_y11","v":"2015-16"},null,null,null,null,null,null,null,null,{"$f":"FRCP_y12","v":"2016-17"},null,null,null,null,null,null,null,null,{"$f":"FRCP_y13","v":"2017-18"},null,null,null,null,null,null,null,null,{"$f":"FRCP_y14","v":"2018-19"},null,null,null,null,null,null,null,null,{"$f":"FRCP_y15","v":"2019-20"}]
[]
[null,null,null,null,null,null,null,null,null,null,null,null,null,null,null,null,null,null,null,null,null,null,null,"RESETS",null,"Current period",null,null,null,null,null,null,null,null,null,null,null,{"$f":"CRCP_y1","v":"2000-01"},null,null,null,null,null,null,null,null,{"$f":"CRCP_y2","v":"2001-02"},null,null,null,null,null,null,null,null,{"$f":"CRCP_y3","v":"2002-03"},null,null,null,null,null,null,null,null,{"$f":"CRCP_y4","v":"2003-04"},null,null,null,null,null,null,null,null,{"$f":"CRCP_y5","v":"2004-05"}]
[null,null,null,null,null,null,null,null,null,null,null,null,null,null,null,null,null,null,null,null,null,null,null,null,null,null,null,null,null,null,null,null,null,null,null,null,null,{"$f":"CRCP_y6","v":"2005-06"},null,null,null,null,null,null,null,null,{"$f":"CRCP_y7","v":"2006-07"},null,null,null,null,null,null,null,null,{"$f":"CRCP_y8","v":"2007-08"},null,null,null,null,null,null,null,null,{"$f":"CRCP_y9","v":"2008-09"},null,null,null,null,null,null,null,null,{"$f":"CRCP_y10","v":"2009-10"}]
[null,null,null,null,null,null,null,null,null,null,null,null,null,null,null,null,null,null,null,null,null,null,null,null,null,null,null,null,null,null,null,null,null,null,null,null,null,{"$f":"CRCP_y11","v":"2010-11"},null,null,null,null,null,null,null,null,{"$f":"CRCP_y12","v":"2011-12"},null,null,null,null,null,null,null,null,{"$f":"CRCP_y13","v":"2012-13"},null,null,null,null,null,null,null,null,{"$f":"CRCP_y14","v":"2013-14"},null,null,null,null,null,null,null,null,{"$f":"CRCP_y15","v":"2014-15"}]
[]
[null,null,null,null,null,null,null,null,null,null,null,null,null,null,null,null,null,null,null,null,null,null,null,null,null,"Previous period",null,null,null,null,null,null,null,null,null,null,null,{"$f":"PRCP_y1","v":"1995--04"},null,null,null,null,null,null,null,null,{"$f":"PRCP_y2","v":"1996--03"},null,null,null,null,null,null,null,null,{"$f":"PRCP_y3","v":"1997--02"},null,null,null,null,null,null,null,null,{"$f":"PRCP_y4","v":"1998--01"},null,null,null,null,null,null,null,null,{"$f":"PRCP_y5","v":"1999-00"}]
[null,null,null,null,null,null,null,null,null,null,null,null,null,null,null,null,null,null,null,null,null,null,null,null,null,null,null,null,null,null,null,null,null,null,null,null,null,{"$f":"PRCP_y6","v":"2000-01"},null,null,null,null,null,null,null,null,{"$f":"PRCP_y7","v":"2001-02"},null,null,null,null,null,null,null,null,{"$f":"PRCP_y8","v":"2002-03"},null,null,null,null,null,null,null,null,{"$f":"PRCP_y9","v":"2003-04"},null,null,null,null,null,null,null,null,{"$f":"PRCP_y10","v":"2004-05"}]
[null,null,null,null,null,null,null,null,null,null,null,null,null,null,null,null,null,null,null,null,null,null,null,null,null,null,null,null,null,null,null,null,null,null,null,null,null,{"$f":"PRCP_y11","v":"2005-06"},null,null,null,null,null,null,null,null,{"$f":"PRCP_y12","v":"2006-07"},null,null,null,null,null,null,null,null,{"$f":"PRCP_y13","v":"2007-08"},null,null,null,null,null,null,null,null,{"$f":"PRCP_y14","v":"2008-09"},null,null,null,null,null,null,null,null,{"$f":"PRCP_y15","v":"2009-10"}]
[]
[null,null,null,null,null,null,null,null,null,null,null,null,null,null,null,null,null,null,null,null,null,null,null,"ANNUAL RINS",null,"Commencing year",null,null,null,null,null,null,null,null,null,null,null,"2023-24"]
[]
[null,null,null,null,null,null,null,null,null,null,null,null,null,null,null,null,null,null,null,null,null,null,null,null,null,"Ending year",null,null,null,null,null,null,null,null,null,null,null,"2023-24"]
[]
[]
[]
[null,null,null,null,null,null,null,null,null,null,null,null,null,null,null,null,"SUBMISSION DETAILS"]
[]
[null,null,null,null,null,null,null,null,null,null,null,null,null,null,null,null,null,null,null,null,null,null,null,null,null,"RIN type",null,null,null,null,null,null,null,null,null,null,null,"Annual Reporting"]
[]
[null,null,null,null,null,null,null,null,null,null,null,null,null,null,null,null,null,null,null,null,null,null,null,null,null,"Source",null,null,null,null,null,null,null,null,null,null,null,"Reporting"]
[]
[null,null,null,null,null,null,null,null,null,null,null,null,null,null,null,null,null,null,null,null,null,null,null,"THIS FILE",null,"Data Quality",null,null,null,null,null,null,null,null,null,null,null,"Consolidated"]
[]
[null,null,null,null,null,null,null,null,null,null,null,null,null,null,null,null,null,null,null,null,null,null,null,null,null,"Confidentiality Status",null,null,null,null,null,null,null,null,null,null,null,"Public"]
[]
[null,null,null,null,null,null,null,null,null,null,null,null,null,null,null,null,null,null,null,null,null,null,null,null,null,"Amended RIN \nAmendment Reason",null,null,null,null,null,null,null,null,null,null,null,"."]
[]
[]
[]
[null,null,null,null,null,null,null,null,null,null,null,null,null,null,null,null,null,null,null,null,null,null,null,null,null,"Submission Date",null,null,null,null,null,null,null,null,null,null,null,"dd/mm/yy"]
[]
[]
[]
[]
[]
[]
[]
[]
[]
[]
[]
[]
[]
[]
[]
[]
[]
[]
[]
[]
[]
[]
[]
["2005-06",null,null,null,null,null,null,null,{"$f":"TEXT(LEFT(FRCP_y1, 4) + 1, \"0000\") & \"-\" & TEXT(RIGHT(FRCP_y1, 2) + 1, \"00\")","v":"2006-07"},null,null,null,null,null,{"$f":"TEXT(LEFT(FRCP_y1, 4) - 5, \"0000\") & \"-\" & TEXT(RIGHT(FRCP_y1, 2) - 5, \"00\")","v":"2000-01"},null,null,null,null,null,{"$f":"TEXT(LEFT(FRCP_y1, 4) - 10, \"0000\") & \"-\" & TEXT(RIGHT(FRCP_y1, 2) - 10, \"00\")","v":"1995--04"},null,null,null,null,null,"ANNUAL REPORTING"]
["2006-07",null,null,null,null,null,null,null,{"$f":"TEXT(LEFT(FRCP_y2, 4) + 1, \"0000\") & \"-\" & TEXT(RIGHT(FRCP_y2, 2) + 1, \"00\")","v":"2007-08"},null,null,null,null,null,{"$f":"TEXT(LEFT(FRCP_y1, 4) - 4, \"0000\") & \"-\" & TEXT(RIGHT(FRCP_y1, 2) - 4, \"00\")","v":"2001-02"},null,null,null,null,null,{"$f":"TEXT(LEFT(FRCP_y1, 4) - 9, \"0000\") & \"-\" & TEXT(RIGHT(FRCP_y1, 2) - 9, \"00\")","v":"1996--03"},null,null,null,null,null,"yes"]
["2007-08",null,null,null,null,null,null,null,{"$f":"TEXT(LEFT(FRCP_y3, 4) + 1, \"0000\") & \"-\" & TEXT(RIGHT(FRCP_y3, 2) + 1, \"00\")","v":"2008-09"},null,null,null,null,null,{"$f":"TEXT(LEFT(FRCP_y1, 4) - 3, \"0000\") & \"-\" & TEXT(RIGHT(FRCP_y1, 2) - 3, \"00\")","v":"2002-03"},null,null,null,null,null,{"$f":"TEXT(LEFT(FRCP_y1, 4) - 8, \"0000\") & \"-\" & TEXT(RIGHT(FRCP_y1, 2) - 8, \"00\")","v":"1997--02"},null,null,null,null,null,{"$f":"IF(dms_SingleYearModel=\"yes\",(CONCATENATE(IF(LEN(CRY)=4,\"1-Jan-\",\"1-Jul-\"),LEFT(CRY,4))),(CONCATENATE(IF(LEN(PRCP_y4)=4,\"1-Jan-\",\"1-Jul-\"),LEFT(PRCP_y4,4))))","v":"1-Jul-2023"}]
["2008-09",null,null,null,null,null,null,null,{"$f":"TEXT(LEFT(FRCP_y4, 4) + 1, \"0000\") & \"-\" & TEXT(RIGHT(FRCP_y4, 2) + 1, \"00\")","v":"2009-10"},null,null,null,null,null,{"$f":"TEXT(LEFT(FRCP_y1, 4) - 2, \"0000\") & \"-\" & TEXT(RIGHT(FRCP_y1, 2) - 2, \"00\")","v":"2003-04"},null,null,null,null,null,{"$f":"TEXT(LEFT(FRCP_y1, 4) - 7, \"0000\") & \"-\" & TEXT(RIGHT(FRCP_y1, 2) - 7, \"00\")","v":"1998--01"}]
["2009-10",null,null,null,null,null,null,null,{"$f":"TEXT(LEFT(FRCP_y5, 4) + 1, \"0000\") & \"-\" & TEXT(RIGHT(FRCP_y5, 2) + 1, \"00\")","v":"2010-11"},null,null,null,null,null,{"$f":"TEXT(LEFT(FRCP_y1, 4) - 1, \"0000\") & \"-\" & TEXT(RIGHT(FRCP_y1, 2) - 1, \"00\")","v":"2004-05"},null,null,null,null,null,{"$f":"TEXT(LEFT(FRCP_y1, 4) - 6, \"0000\") & \"-\" & TEXT(RIGHT(FRCP_y1, 2) - 6, \"00\")","v":"1999-00"}]
["2010-11",null,null,null,null,null,null,null,{"$f":"TEXT(LEFT(FRCP_y6, 4) + 1, \"0000\") & \"-\" & TEXT(RIGHT(FRCP_y6, 2) + 1, \"00\")","v":"2011-12"},null,null,null,null,null,{"$f":"TEXT(LEFT(FRCP_y1, 4) - 0, \"0000\") & \"-\" & TEXT(RIGHT(FRCP_y1, 2) - 0, \"00\")","v":"2005-06"},null,null,null,null,null,{"$f":"TEXT(LEFT(FRCP_y1, 4) - 5, \"0000\") & \"-\" & TEXT(RIGHT(FRCP_y1, 2) - 5, \"00\")","v":"2000-01"}]
["2011-12",null,null,null,null,null,null,null,{"$f":"TEXT(LEFT(FRCP_y7, 4) + 1, \"0000\") & \"-\" & TEXT(RIGHT(FRCP_y7, 2) + 1, \"00\")","v":"2012-13"},null,null,null,null,null,{"$f":"TEXT(LEFT(FRCP_y1, 4) + 1, \"0000\") & \"-\" & TEXT(RIGHT(FRCP_y1, 2) + 1, \"00\")","v":"2006-07"},null,null,null,null,null,{"$f":"TEXT(LEFT(FRCP_y1, 4) - 4, \"0000\") & \"-\" & TEXT(RIGHT(FRCP_y1, 2) - 4, \"00\")","v":"2001-02"}]
["2012-13",null,null,null,null,null,null,null,{"$f":"TEXT(LEFT(FRCP_y8, 4) + 1, \"0000\") & \"-\" & TEXT(RIGHT(FRCP_y8, 2) + 1, \"00\")","v":"2013-14"},null,null,null,null,null,{"$f":"TEXT(LEFT(FRCP_y1, 4) + 2, \"0000\") & \"-\" & TEXT(RIGHT(FRCP_y1, 2) + 2, \"00\")","v":"2007-08"},null,null,null,null,null,{"$f":"TEXT(LEFT(FRCP_y1, 4) - 3, \"0000\") & \"-\" & TEXT(RIGHT(FRCP_y1, 2) - 3, \"00\")","v":"2002-03"}]
["2013-14",null,null,null,null,null,null,null,{"$f":"TEXT(LEFT(FRCP_y9, 4) + 1, \"0000\") & \"-\" & TEXT(RIGHT(FRCP_y9, 2) + 1, \"00\")","v":"2014-15"},null,null,null,null,null,{"$f":"TEXT(LEFT(FRCP_y1, 4) + 3, \"0000\") & \"-\" & TEXT(RIGHT(FRCP_y1, 2) + 3, \"00\")","v":"2008-09"},null,null,null,null,null,{"$f":"TEXT(LEFT(FRCP_y1, 4) - 2, \"0000\") & \"-\" & TEXT(RIGHT(FRCP_y1, 2) - 2, \"00\")","v":"2003-04"}]
["2014-15",null,null,null,null,null,null,null,{"$f":"TEXT(LEFT(FRCP_y10, 4) + 1, \"0000\") & \"-\" & TEXT(RIGHT(FRCP_y10, 2) + 1, \"00\")","v":"2015-16"},null,null,null,null,null,{"$f":"TEXT(LEFT(FRCP_y1, 4) + 4, \"0000\") & \"-\" & TEXT(RIGHT(FRCP_y1, 2) + 4, \"00\")","v":"2009-10"},null,null,null,null,null,{"$f":"TEXT(LEFT(FRCP_y1, 4) - 1, \"0000\") & \"-\" & TEXT(RIGHT(FRCP_y1, 2) - 1, \"00\")","v":"2004-05"}]
["2015-16",null,null,null,null,null,null,null,{"$f":"TEXT(LEFT(FRCP_y11,4)+1,\"0000\")&\"-\"&TEXT(RIGHT(FRCP_y11,2)+1,\"00\")","v":"2016-17"},null,null,null,null,null,{"$f":"TEXT(LEFT(FRCP_y1, 4) + 5, \"0000\") & \"-\" & TEXT(RIGHT(FRCP_y1, 2) + 5, \"00\")","v":"2010-11"},null,null,null,null,null,{"$f":"TEXT(LEFT(FRCP_y1, 4) - 0, \"0000\") & \"-\" & TEXT(RIGHT(FRCP_y1, 2) - 0, \"00\")","v":"2005-06"}]
["2016-17",null,null,null,null,null,null,null,{"$f":"TEXT(LEFT(FRCP_y12, 4) + 1, \"0000\") & \"-\" & TEXT(RIGHT(FRCP_y12, 2) + 1, \"00\")","v":"2017-18"},null,null,null,null,null,{"$f":"TEXT(LEFT(FRCP_y1, 4) + 6, \"0000\") & \"-\" & TEXT(RIGHT(FRCP_y1, 2) + 6, \"00\")","v":"2011-12"},null,null,null,null,null,{"$f":"TEXT(LEFT(FRCP_y1, 4) + 1, \"0000\") & \"-\" & TEXT(RIGHT(FRCP_y1, 2) + 1, \"00\")","v":"2006-07"}]
["2017-18",null,null,null,null,null,null,null,{"$f":"TEXT(LEFT(FRCP_y13, 4) + 1, \"0000\") & \"-\" & TEXT(RIGHT(FRCP_y13, 2) + 1, \"00\")","v":"2018-19"},null,null,null,null,null,{"$f":"TEXT(LEFT(FRCP_y1, 4) + 7, \"0000\") & \"-\" & TEXT(RIGHT(FRCP_y1, 2) + 7, \"00\")","v":"2012-13"},null,null,null,null,null,{"$f":"TEXT(LEFT(FRCP_y1, 4) + 2, \"0000\") & \"-\" & TEXT(RIGHT(FRCP_y1, 2) + 2, \"00\")","v":"2007-08"}]
["2018-19",null,null,null,null,null,null,null,{"$f":"TEXT(LEFT(FRCP_y14, 4) + 1, \"0000\") & \"-\" & TEXT(RIGHT(FRCP_y14, 2) + 1, \"00\")","v":"2019-20"},null,null,null,null,null,{"$f":"TEXT(LEFT(FRCP_y1, 4) + 8, \"0000\") & \"-\" & TEXT(RIGHT(FRCP_y1, 2) + 8, \"00\")","v":"2013-14"},null,null,null,null,null,{"$f":"TEXT(LEFT(FRCP_y1, 4) + 3, \"0000\") & \"-\" & TEXT(RIGHT(FRCP_y1, 2) + 3, \"00\")","v":"2008-09"}]
["2019-20",null,null,null,null,null,null,null,{"$f":"TEXT(LEFT(FRCP_y15, 4) + 1, \"0000\") & \"-\" & TEXT(RIGHT(FRCP_y15, 2) + 1, \"00\")","v":"2020-21"},null,null,null,null,null,{"$f":"TEXT(LEFT(FRCP_y1, 4) + 9, \"0000\") & \"-\" & TEXT(RIGHT(FRCP_y1, 2) + 9, \"00\")","v":"2014-15"},null,null,null,null,null,{"$f":"TEXT(LEFT(FRCP_y1, 4) + 4, \"0000\") & \"-\" & TEXT(RIGHT(FRCP_y1, 2) + 4, \"00\")","v":"2009-10"}]
["2020-21",null,null,null,null,null,null,null,null,null,null,null,null,null,{"$f":"TEXT(LEFT(FRCP_y1, 4) + 10, \"0000\") & \"-\" & TEXT(RIGHT(FRCP_y1, 2) + 10, \"00\")","v":"2015-16"},null,null,null,null,null,{"$f":"TEXT(LEFT(FRCP_y1, 4) + 5, \"0000\") & \"-\" & TEXT(RIGHT(FRCP_y1, 2) + 5, \"00\")","v":"2010-11"}]
["2021-22"]
["2023-24"]
["2023-24"]
["2024-25"]
["2025-26"]
["2026-27"]
["2027-28"]
["2028-29"]
["2029-30"]
["2030-31"]
["2031-32"]
["2032-33"]
["2033-34"]
["2034-35"]
["2035-36"]

{"sheet":"6.2 STPIS Reliability","index":3,"n_rows":96,"n_cols":4,"rows_kept":96,"cut":false,"hidden":false,"merged":[[78,1,83,1],[84,1,89,1],[90,1,95,1],[77,1,77,2],[24,1,29,1],[34,1,39,1],[40,1,45,1],[46,1,51,1],[7,1,7,2],[33,1,33,2],[68,1,73,1],[62,1,67,1],[55,1,55,2],[56,1,61,1],[18,1,23,1],[11,1,11,2],[12,1,17,1]]}
[null,{"$f":"SheetHeader","v":"ANNUAL REPORTING"}]
[null,{"$f":"INDEX(dms_TradingNameFull_List,MATCH(dms_TradingName,dms_TradingName_List))","v":"Ergon Energy"}]
[null,{"$f":"CONCATENATE(\"Annual Reporting RIN Response \", CRY)","v":"Annual Reporting RIN Response 2023-24"}]
[null,"6.2 RELIABILITY AND CUSTOMER SERVICE PERFORMANCE"]
[null," TEMPLATE DATE - MAY 2024"]
[]
[]
[null,"Did the MAIFI parameter of the STPIS apply during the period?\nNB:This flag is set from the response on worksheet 3.6.8 Network feeders",null,{"$f":"dms_MAIFI_Flag","v":{"$error":"#REF!"}}]
[]
[]
[null,"6.2.1 - UNPLANNED MINUTES OFF SUPPLY (SAIDI)"]
[null,null,null,{"$f":"CRY","v":"2023-24"}]
[null,"Total sustained minutes off supply",{"$f":"INDEX(dms_FeederName_1,MATCH(dms_TradingName,dms_TradingName_List))","v":"CBD"}]
[null,null,{"$f":"INDEX(dms_FeederName_2,MATCH(dms_TradingName,dms_TradingName_List))","v":"Urban"},553.36231128957002]
[null,null,{"$f":"INDEX(dms_FeederName_3,MATCH(dms_TradingName,dms_TradingName_List))","v":"Short rural"},881.54469542930997]
[null,null,{"$f":"INDEX(dms_FeederName_4,MATCH(dms_TradingName,dms_TradingName_List))","v":"Long rural"},1164.4017285570999]
[null,null,{"$f":"IF((INDEX(dms_FeederName_5,MATCH(dms_TradingName,dms_TradingName_List))=0),\"\",(INDEX(dms_FeederName_5,MATCH(dms_TradingName,dms_TradingName_List))))","v":""}]
[null,null,"Whole Network",802.16880686692002]
[null,"Total of excluded events*\n\n*see 3.3 of STPIS",{"$f":"INDEX(dms_FeederName_1,MATCH(dms_TradingName,dms_TradingName_List))","v":"CBD"}]
[null,null,{"$f":"INDEX(dms_FeederName_2,MATCH(dms_TradingName,dms_TradingName_List))","v":"Urban"},422.73863398927]
[null,null,{"$f":"INDEX(dms_FeederName_3,MATCH(dms_TradingName,dms_TradingName_List))","v":"Short rural"},603.30060902869002]
[null,null,{"$f":"INDEX(dms_FeederName_4,MATCH(dms_TradingName,dms_TradingName_List))","v":"Long rural"},350.53207718596002]
[null,null,{"$f":"IF((INDEX(dms_FeederName_5,MATCH(dms_TradingName,dms_TradingName_List))=0),\"\",(INDEX(dms_FeederName_5,MATCH(dms_TradingName,dms_TradingName_List))))","v":""}]
[null,null,"Whole Network",515.64589043309002]
[null,"Total sustained minutes off supply after removing excluded events",{"$f":"INDEX(dms_FeederName_1,MATCH(dms_TradingName,dms_TradingName_List))","v":"CBD"}]
[null,null,{"$f":"INDEX(dms_FeederName_2,MATCH(dms_TradingName,dms_TradingName_List))","v":"Urban"},130.62367730029999]
[null,null,{"$f":"INDEX(dms_FeederName_3,MATCH(dms_TradingName,dms_TradingName_List))","v":"Short rural"},278.24408640061]
[null,null,{"$f":"INDEX(dms_FeederName_4,MATCH(dms_TradingName,dms_TradingName_List))","v":"Long rural"},813.86965137118]
[null,null,{"$f":"IF((INDEX(dms_FeederName_5,MATCH(dms_TradingName,dms_TradingName_List))=0),\"\",(INDEX(dms_FeederName_5,MATCH(dms_TradingName,dms_TradingName_List))))","v":""}]
[null,null,"Whole Network",286.52291643382]
[]
[]
[null,"6.2.2 - UNPLANNED INTERRUPTIONS TO SUPPLY (SAIFI)"]
[null,null,null,{"$f":"CRY","v":"2023-24"}]
[null,"Total sustained interruptions",{"$f":"INDEX(dms_FeederName_1,MATCH(dms_TradingName,dms_TradingName_List))","v":"CBD"}]
[null,null,{"$f":"INDEX(dms_FeederName_2,MATCH(dms_TradingName,dms_TradingName_List))","v":"Urban"},1.8287152334932999]
[null,null,{"$f":"INDEX(dms_FeederName_3,MATCH(dms_TradingName,dms_TradingName_List))","v":"Short rural"},2.8972306339984]
[null,null,{"$f":"INDEX(dms_FeederName_4,MATCH(dms_TradingName,dms_TradingName_List))","v":"Long rural"},5.1033258314578998]
[null,null,{"$f":"IF((INDEX(dms_FeederName_5,MATCH(dms_TradingName,dms_TradingName_List))=0),\"\",(INDEX(dms_FeederName_5,MATCH(dms_TradingName,dms_TradingName_List))))","v":""}]
[null,null,"Whole Network",2.7772021981248001]
[null,"Total of excluded events*\n\n*see 3.3 of STPIS",{"$f":"INDEX(dms_FeederName_1,MATCH(dms_TradingName,dms_TradingName_List))","v":"CBD"}]
[null,null,{"$f":"INDEX(dms_FeederName_2,MATCH(dms_TradingName,dms_TradingName_List))","v":"Urban"},0.58309562222641997]
[null,null,{"$f":"INDEX(dms_FeederName_3,MATCH(dms_TradingName,dms_TradingName_List))","v":"Short rural"},0.66278115053778996]
[null,null,{"$f":"INDEX(dms_FeederName_4,MATCH(dms_TradingName,dms_TradingName_List))","v":"Long rural"},0.92391847961991003]
[null,null,{"$f":"IF((INDEX(dms_FeederName_5,MATCH(dms_TradingName,dms_TradingName_List))=0),\"\",(INDEX(dms_FeederName_5,MATCH(dms_TradingName,dms_TradingName_List))))","v":""}]
[null,null,"Whole Network",0.66423522789857004]
[null,"Total sustained interruptions after removing excluded events",{"$f":"INDEX(dms_FeederName_1,MATCH(dms_TradingName,dms_TradingName_List))","v":"CBD"}]
[null,null,{"$f":"INDEX(dms_FeederName_2,MATCH(dms_TradingName,dms_TradingName_List))","v":"Urban"},1.2456196112669]
[null,null,{"$f":"INDEX(dms_FeederName_3,MATCH(dms_TradingName,dms_TradingName_List))","v":"Short rural"},2.2344494834606001]
[null,null,{"$f":"INDEX(dms_FeederName_4,MATCH(dms_TradingName,dms_TradingName_List))","v":"Long rural"},4.1794073518379999]
[null,null,{"$f":"IF((INDEX(dms_FeederName_5,MATCH(dms_TradingName,dms_TradingName_List))=0),\"\",(INDEX(dms_FeederName_5,MATCH(dms_TradingName,dms_TradingName_List))))","v":""}]
[null,null,"Whole Network",2.1129669702261999]
[]
[]
[null,"6.2.3 - UNPLANNED MOMENTARY INTERRUPTIONS TO SUPPLY (MAIFI)"]
[null,null,null,{"$f":"CRY","v":"2023-24"}]
[null,"Total momentary interruptions",{"$f":"INDEX(dms_FeederName_1,MATCH(dms_TradingName,dms_TradingName_List))","v":"CBD"}]
[null,null,{"$f":"INDEX(dms_FeederName_2,MATCH(dms_TradingName,dms_TradingName_List))","v":"Urban"}]
[null,null,{"$f":"INDEX(dms_FeederName_3,MATCH(dms_TradingName,dms_TradingName_List))","v":"Short rural"}]
[null,null,{"$f":"INDEX(dms_FeederName_4,MATCH(dms_TradingName,dms_TradingName_List))","v":"Long rural"}]
[null,null,{"$f":"IF((INDEX(dms_FeederName_5,MATCH(dms_TradingName,dms_TradingName_List))=0),\"\",(INDEX(dms_FeederName_5,MATCH(dms_TradingName,dms_TradingName_List))))","v":""}]
[null,null,"Whole Network"]
[null,"Total of excluded events*\n\n*see 3.3 of STPIS",{"$f":"INDEX(dms_FeederName_1,MATCH(dms_TradingName,dms_TradingName_List))","v":"CBD"}]
[null,null,{"$f":"INDEX(dms_FeederName_2,MATCH(dms_TradingName,dms_TradingName_List))","v":"Urban"}]
[null,null,{"$f":"INDEX(dms_FeederName_3,MATCH(dms_TradingName,dms_TradingName_List))","v":"Short rural"}]
[null,null,{"$f":"INDEX(dms_FeederName_4,MATCH(dms_TradingName,dms_TradingName_List))","v":"Long rural"}]
[null,null,{"$f":"IF((INDEX(dms_FeederName_5,MATCH(dms_TradingName,dms_TradingName_List))=0),\"\",(INDEX(dms_FeederName_5,MATCH(dms_TradingName,dms_TradingName_List))))","v":""}]
[null,null,"Whole Network"]
[null,"Total momentary interruptions after removing excluded events",{"$f":"INDEX(dms_FeederName_1,MATCH(dms_TradingName,dms_TradingName_List))","v":"CBD"}]
[null,null,{"$f":"INDEX(dms_FeederName_2,MATCH(dms_TradingName,dms_TradingName_List))","v":"Urban"}]
[null,null,{"$f":"INDEX(dms_FeederName_3,MATCH(dms_TradingName,dms_TradingName_List))","v":"Short rural"}]
[null,null,{"$f":"INDEX(dms_FeederName_4,MATCH(dms_TradingName,dms_TradingName_List))","v":"Long rural"}]
[null,null,{"$f":"IF((INDEX(dms_FeederName_5,MATCH(dms_TradingName,dms_TradingName_List))=0),\"\",(INDEX(dms_FeederName_5,MATCH(dms_TradingName,dms_TradingName_List))))","v":""}]
[null,null,"Whole Network"]
[]
[]
[null,"6.2.4 - DISTRIBUTION CUSTOMER NUMBERS"]
[null,null,null,{"$f":"CRY","v":"2023-24"}]
[null,"Customer numbers at the start of the period",{"$f":"INDEX(dms_FeederName_1,MATCH(dms_TradingName,dms_TradingName_List))","v":"CBD"}]
[null,null,{"$f":"INDEX(dms_FeederName_2,MATCH(dms_TradingName,dms_TradingName_List))","v":"Urban"},249140]
[null,null,{"$f":"INDEX(dms_FeederName_3,MATCH(dms_TradingName,dms_TradingName_List))","v":"Short rural"},412984]
[null,null,{"$f":"INDEX(dms_FeederName_4,MATCH(dms_TradingName,dms_TradingName_List))","v":"Long rural"},80132]
[null,null,{"$f":"IF((INDEX(dms_FeederName_5,MATCH(dms_TradingName,dms_TradingName_List))=0),\"\",(INDEX(dms_FeederName_5,MATCH(dms_TradingName,dms_TradingName_List))))","v":""}]
[null,null,"Whole Network",742256]
[null,"Customer numbers at the end of the period",{"$f":"INDEX(dms_FeederName_1,MATCH(dms_TradingName,dms_TradingName_List))","v":"CBD"}]
[null,null,{"$f":"INDEX(dms_FeederName_2,MATCH(dms_TradingName,dms_TradingName_List))","v":"Urban"},247962]
[null,null,{"$f":"INDEX(dms_FeederName_3,MATCH(dms_TradingName,dms_TradingName_List))","v":"Short rural"},415220]
[null,null,{"$f":"INDEX(dms_FeederName_4,MATCH(dms_TradingName,dms_TradingName_List))","v":"Long rural"},79827]
[null,null,{"$f":"IF((INDEX(dms_FeederName_5,MATCH(dms_TradingName,dms_TradingName_List))=0),\"\",(INDEX(dms_FeederName_5,MATCH(dms_TradingName,dms_TradingName_List))))","v":""}]
[null,null,"Whole Network",743009]
[null,"Average customer numbers",{"$f":"INDEX(dms_FeederName_1,MATCH(dms_TradingName,dms_TradingName_List))","v":"CBD"},{"$f":"IFERROR(ROUND(AVERAGE(D79,D85),0),\"\")","v":""}]
[null,null,{"$f":"INDEX(dms_FeederName_2,MATCH(dms_TradingName,dms_TradingName_List))","v":"Urban"},{"$f":"IFERROR(ROUND(AVERAGE(D80,D86),0),\"\")","v":248551}]
[null,null,{"$f":"INDEX(dms_FeederName_3,MATCH(dms_TradingName,dms_TradingName_List))","v":"Short rural"},{"$f":"IFERROR(ROUND(AVERAGE(D81,D87),0),\"\")","v":414102}]
[null,null,{"$f":"INDEX(dms_FeederName_4,MATCH(dms_TradingName,dms_TradingName_List))","v":"Long rural"},{"$f":"IFERROR(ROUND(AVERAGE(D82,D88),0),\"\")","v":79980}]
[null,null,{"$f":"IF((INDEX(dms_FeederName_5,MATCH(dms_TradingName,dms_TradingName_List))=0),\"\",(INDEX(dms_FeederName_5,MATCH(dms_TradingName,dms_TradingName_List))))","v":""}]
[null,null,"Whole Network",{"$f":"IFERROR(ROUND(AVERAGE(D84,D90),0),\"\")","v":742633}]